{"text_format":"3","workbook":"xlsx","n_sheets":4,"sheets":["Folha de Pontuações","O Seu Desempenho","Definições","Cálculos"],"not_rendered":{"defined_names":3,"comments":1},"read":"whole","date_system":"1900"}

{"sheet":"Folha de Pontuações","index":0,"n_rows":14,"n_cols":6,"rows_kept":14}
[null,"Insira as suas Classificações Aqui"]
[]
[null,null,"Aula","Tipo","Descrição","Classificação"]
[null,null,"Francês Moderno","Trabalhos de Casa","História da 2ª Guerra Mundial",{"v":0.8,"d":"80%"}]
[null,null,"Programação Avançada em Java","Testes Intermédios",null,{"v":0.75,"d":"75%"}]
[null,null,"Espanhol","Trabalhos de Casa",null,{"v":0.5,"d":"50%"}]
[null,null,"Física","Trabalhos de Casa",null,{"v":0.95,"d":"95%"}]
[null,null,"Francês Moderno","Trabalhos de Casa","História da 1ª Guerra Mundial",{"v":0.9,"d":"90%"}]
[null,null,"Francês Moderno","Trabalhos de Casa","Páginas 30 - 41",{"v":0.8,"d":"80%"}]
[null,null,"Composição","Ensaio","Exposição argumentativa",{"v":0.95,"d":"95%"}]
[null,null,"Matemática 1","Trabalhos de Casa","Páginas 21 & 26",{"v":0.8,"d":"80%"}]
[null,null,"Matemática 2","Trabalhos de Casa","Páginas 15 & 18",{"v":0.85,"d":"85%"}]
[null,null,"Matemática 1","Trabalhos de Casa","Página 34 - 36",{"v":0.8,"d":"80%"}]
[null,null,"Matemática 2","Questionário",null,{"v":0.95,"d":"95%"}]

{"sheet":"O Seu Desempenho","index":1,"n_rows":31,"n_cols":8,"rows_kept":31}
[null,"O seu Desempenho"]
[]
[null,null,"Totais"]
[null,null,{"$f":"\"Horas: \"&SUM(tblAulas[Creditação em Horas])","v":"Horas: 24"},{"$f":"AVERAGE(D7:D31)","v":{"v":0.8104761904761906,"d":"81%"}},{"$f":"AVERAGE(E7:E31)","v":{"v":2.7142857142857144,"d":"2.71"}},{"$f":"SUM(F7:F31)","v":{"v":2.625,"d":"2.63"}},{"$f":"IFERROR(HLOOKUP(D4,lstMapaDeNotas,2),\"\")","v":"B-"}]
[]
[null,null,"Aulas","%","Média","Média ponderada","Letra","Desempenho Global"]
[null,null,{"$f":"Cálculos!C6","v":"Francês Moderno"},{"$f":"Cálculos!AL6","v":{"v":0.8333333333333334,"d":"83%"}},{"$f":"Cálculos!AM6","v":{"v":3,"d":"3.00"}},{"$f":"IFERROR(E7*Definições!D9/SUM(tblAulas[Creditação em Horas]),\"\")","v":{"v":0.375,"d":"0.38"}},{"$f":"Cálculos!AN6","v":"B"}]
[null,null,{"$f":"Cálculos!C7","v":"Física"},{"$f":"Cálculos!AL7","v":{"v":0.95,"d":"95%"}},{"$f":"Cálculos!AM7","v":{"v":4,"d":"4.00"}},{"$f":"IFERROR(E8*Definições!D10/SUM(tblAulas[Creditação em Horas]),\"\")","v":{"v":0.5,"d":"0.50"}},{"$f":"Cálculos!AN7","v":"A"}]
[null,null,{"$f":"Cálculos!C8","v":"Matemática 1"},{"$f":"Cálculos!AL8","v":{"v":0.8000000000000002,"d":"80%"}},{"$f":"Cálculos!AM8","v":2.67},{"$f":"IFERROR(E9*Definições!D11/SUM(tblAulas[Creditação em Horas]),\"\")","v":{"v":0.445,"d":"0.45"}},{"$f":"Cálculos!AN8","v":"B-"}]
[null,null,{"$f":"Cálculos!C9","v":"Matemática 2"},{"$f":"Cálculos!AL9","v":{"v":0.89,"d":"89%"}},{"$f":"Cálculos!AM9","v":3.33},{"$f":"IFERROR(E10*Definições!D12/SUM(tblAulas[Creditação em Horas]),\"\")","v":{"v":0.555,"d":"0.56"}},{"$f":"Cálculos!AN9","v":"B+"}]
[null,null,{"$f":"Cálculos!C10","v":"Programação Avançada em Java"},{"$f":"Cálculos!AL10","v":{"v":0.7500000000000001,"d":"75%"}},{"$f":"Cálculos!AM10","v":{"v":2,"d":"2.00"}},{"$f":"IFERROR(E11*Definições!D13/SUM(tblAulas[Creditação em Horas]),\"\")","v":{"v":0.4166666666666667,"d":"0.42"}},{"$f":"Cálculos!AN10","v":"C"}]
[null,null,{"$f":"Cálculos!C11","v":"Espanhol"},{"$f":"Cálculos!AL11","v":{"v":0.5,"d":"50%"}},{"$f":"Cálculos!AM11","v":{"v":0,"d":"0.00"}},{"$f":"IFERROR(E12*Definições!D14/SUM(tblAulas[Creditação em Horas]),\"\")","v":{"v":0,"d":"0.00"}},{"$f":"Cálculos!AN11","v":"F"}]
[null,null,{"$f":"Cálculos!C12","v":"Composição"},{"$f":"Cálculos!AL12","v":{"v":0.95,"d":"95%"}},{"$f":"Cálculos!AM12","v":{"v":4,"d":"4.00"}},{"$f":"IFERROR(E13*Definições!D15/SUM(tblAulas[Creditação em Horas]),\"\")","v":{"v":0.3333333333333333,"d":"0.33"}},{"$f":"Cálculos!AN12","v":"A"}]
[null,null,{"$f":"Cálculos!C13","v":""},{"$f":"Cálculos!AL13","v":""},{"$f":"Cálculos!AM13","v":""},{"$f":"IFERROR(E14*Definições!D16/SUM(tblAulas[Creditação em Horas]),\"\")","v":""},{"$f":"Cálculos!AN13","v":""}]
[null,null,{"$f":"Cálculos!C14","v":""},{"$f":"Cálculos!AL14","v":""},{"$f":"Cálculos!AM14","v":""},{"$f":"IFERROR(E15*Definições!D17/SUM(tblAulas[Creditação em Horas]),\"\")","v":""},{"$f":"Cálculos!AN14","v":""}]
[null,null,{"$f":"Cálculos!C15","v":""},{"$f":"Cálculos!AL15","v":""},{"$f":"Cálculos!AM15","v":""},{"$f":"IFERROR(E16*Definições!D18/SUM(tblAulas[Creditação em Horas]),\"\")","v":""},{"$f":"Cálculos!AN15","v":""}]
[null,null,{"$f":"Cálculos!C16","v":""},{"$f":"Cálculos!AL16","v":""},{"$f":"Cálculos!AM16","v":""},{"$f":"IFERROR(E17*Definições!D19/SUM(tblAulas[Creditação em Horas]),\"\")","v":""},{"$f":"Cálculos!AN16","v":""}]
[null,null,{"$f":"Cálculos!C17","v":""},{"$f":"Cálculos!AL17","v":""},{"$f":"Cálculos!AM17","v":""},{"$f":"IFERROR(E18*Definições!D20/SUM(tblAulas[Creditação em Horas]),\"\")","v":""},{"$f":"Cálculos!AN17","v":""}]
[null,null,{"$f":"Cálculos!C18","v":""},{"$f":"Cálculos!AL18","v":""},{"$f":"Cálculos!AM18","v":""},{"$f":"IFERROR(E19*Definições!D21/SUM(tblAulas[Creditação em Horas]),\"\")","v":""},{"$f":"Cálculos!AN18","v":""}]
[null,null,{"$f":"Cálculos!C19","v":""},{"$f":"Cálculos!AL19","v":""},{"$f":"Cálculos!AM19","v":""},{"$f":"IFERROR(E20*Definições!D22/SUM(tblAulas[Creditação em Horas]),\"\")","v":""},{"$f":"Cálculos!AN19","v":""}]
[null,null,{"$f":"Cálculos!C20","v":""},{"$f":"Cálculos!AL20","v":""},{"$f":"Cálculos!AM20","v":""},{"$f":"IFERROR(E21*Definições!D23/SUM(tblAulas[Creditação em Horas]),\"\")","v":""},{"$f":"Cálculos!AN20","v":""}]
[null,null,{"$f":"Cálculos!C21","v":""},{"$f":"Cálculos!AL21","v":""},{"$f":"Cálculos!AM21","v":""},{"$f":"IFERROR(E22*Definições!D24/SUM(tblAulas[Creditação em Horas]),\"\")","v":""},{"$f":"Cálculos!AN21","v":""}]
[null,null,{"$f":"Cálculos!C22","v":""},{"$f":"Cálculos!AL22","v":""},{"$f":"Cálculos!AM22","v":""},{"$f":"IFERROR(E23*Definições!D25/SUM(tblAulas[Creditação em Horas]),\"\")","v":""},{"$f":"Cálculos!AN22","v":""}]
[null,null,{"$f":"Cálculos!C23","v":""},{"$f":"Cálculos!AL23","v":""},{"$f":"Cálculos!AM23","v":""},{"$f":"IFERROR(E24*Definições!D26/SUM(tblAulas[Creditação em Horas]),\"\")","v":""},{"$f":"Cálculos!AN23","v":""}]
[null,null,{"$f":"Cálculos!C24","v":""},{"$f":"Cálculos!AL24","v":""},{"$f":"Cálculos!AM24","v":""},{"$f":"IFERROR(E25*Definições!D27/SUM(tblAulas[Creditação em Horas]),\"\")","v":""},{"$f":"Cálculos!AN24","v":""}]
[null,null,{"$f":"Cálculos!C25","v":""},{"$f":"Cálculos!AL25","v":""},{"$f":"Cálculos!AM25","v":""},{"$f":"IFERROR(E26*Definições!D28/SUM(tblAulas[Creditação em Horas]),\"\")","v":""},{"$f":"Cálculos!AN25","v":""}]
[null,null,{"$f":"Cálculos!C26","v":""},{"$f":"Cálculos!AL26","v":""},{"$f":"Cálculos!AM26","v":""},{"$f":"IFERROR(E27*Definições!D29/SUM(tblAulas[Creditação em Horas]),\"\")","v":""},{"$f":"Cálculos!AN26","v":""}]
[null,null,{"$f":"Cálculos!C27","v":""},{"$f":"Cálculos!AL27","v":""},{"$f":"Cálculos!AM27","v":""},{"$f":"IFERROR(E28*Definições!D30/SUM(tblAulas[Creditação em Horas]),\"\")","v":""},{"$f":"Cálculos!AN27","v":""}]
[null,null,{"$f":"Cálculos!C28","v":""},{"$f":"Cálculos!AL28","v":""},{"$f":"Cálculos!AM28","v":""},{"$f":"IFERROR(E29*Definições!D31/SUM(tblAulas[Creditação em Horas]),\"\")","v":""},{"$f":"Cálculos!AN28","v":""}]
[null,null,{"$f":"Cálculos!C29","v":""},{"$f":"Cálculos!AL29","v":""},{"$f":"Cálculos!AM29","v":""},{"$f":"IFERROR(E30*Definições!D32/SUM(tblAulas[Creditação em Horas]),\"\")","v":""},{"$f":"Cálculos!AN29","v":""}]
[null,null,{"$f":"Cálculos!C30","v":""},{"$f":"Cálculos!AL30","v":""},{"$f":"Cálculos!AM30","v":""},{"$f":"IFERROR(E31*Definições!D33/SUM(tblAulas[Creditação em Horas]),\"\")","v":""},{"$f":"Cálculos!AN30","v":""}]

{"sheet":"Definições","index":2,"n_rows":15,"n_cols":16,"rows_kept":15,"merged":[[5,2,5,15]]}
[null,"Definições"]
[null,null,"Mapeamento de classificações e média"]
[null,null,"Percentagem",{"v":0,"d":"0%"},{"v":0.6,"d":"60%"},{"v":0.63,"d":"63%"},{"v":0.67,"d":"67%"},{"v":0.7,"d":"70%"},{"v":0.73,"d":"73%"},{"v":0.77,"d":"77%"},{"v":0.8,"d":"80%"},{"v":0.83,"d":"83%"},{"v":0.87,"d":"87%"},{"v":0.9,"d":"90%"},{"v":0.93,"d":"93%"},{"v":0.97,"d":"97%"}]
[null,null,"Nota Qualitativa","F","D-","D","D+","C-","C","C+","B-","B","B+","A-","A","A+"]
[null,null,"Média",0,0.67,1,1.33,1.67,2,2.33,2.67,3,3.33,3.67,4,4]
[]
[null,null,"Classificações ponderadas de até 25 aulas"]
[null,null,"Turmas em que está inscrito","Creditação em Horas","Trabalhos de Casa","Ensaio","Questionário","Projeto","Testes Intermédios","Exame Final","Outra","% Total"]
[null,null,"Francês Moderno",{"v":3,"d":"3.0"},{"v":0.1,"d":"10%"},{"v":0.15,"d":"15%"},{"v":0.15,"d":"15%"},{"v":0.1,"d":"10%"},{"v":0.2,"d":"20%"},{"v":0.3,"d":"30%"},null,{"$f":"SUM(tblAulas[[#This Row],[Trabalhos de Casa]:[Outra]])","v":{"v":1,"d":"100%"}}]
[null,null,"Física",{"v":3,"d":"3.0"},{"v":0.15,"d":"15%"},{"v":0.15,"d":"15%"},{"v":0.1,"d":"10%"},{"v":0.1,"d":"10%"},{"v":0.15,"d":"15%"},{"v":0.3,"d":"30%"},{"v":0.05,"d":"5%"},{"$f":"SUM(tblAulas[[#This Row],[Trabalhos de Casa]:[Outra]])","v":{"v":1,"d":"100%"}}]
[null,null,"Matemática 1",{"v":4,"d":"4.0"},{"v":0.1,"d":"10%"},{"v":0.15,"d":"15%"},{"v":0.15,"d":"15%"},{"v":0.1,"d":"10%"},{"v":0.2,"d":"20%"},{"v":0.3,"d":"30%"},null,{"$f":"SUM(tblAulas[[#This Row],[Trabalhos de Casa]:[Outra]])","v":{"v":1,"d":"100%"}}]
[null,null,"Matemática 2",{"v":4,"d":"4.0"},{"v":0.15,"d":"15%"},{"v":0.15,"d":"15%"},{"v":0.1,"d":"10%"},{"v":0.1,"d":"10%"},{"v":0.15,"d":"15%"},{"v":0.3,"d":"30%"},{"v":0.05,"d":"5%"},{"$f":"SUM(tblAulas[[#This Row],[Trabalhos de Casa]:[Outra]])","v":{"v":1,"d":"100%"}}]
[null,null,"Programação Avançada em Java",{"v":5,"d":"5.0"},{"v":0.15,"d":"15%"},{"v":0.15,"d":"15%"},{"v":0.1,"d":"10%"},{"v":0.1,"d":"10%"},{"v":0.2,"d":"20%"},{"v":0.3,"d":"30%"},null,{"$f":"SUM(tblAulas[[#This Row],[Trabalhos de Casa]:[Outra]])","v":{"v":1,"d":"100%"}}]
[null,null,"Espanhol",{"v":3,"d":"3.0"},{"v":0.1,"d":"10%"},{"v":0.15,"d":"15%"},{"v":0.17,"d":"17%"},{"v":0.13,"d":"13%"},{"v":0.2,"d":"20%"},{"v":0.2,"d":"20%"},{"v":0.05,"d":"5%"},{"$f":"SUM(tblAulas[[#This Row],[Trabalhos de Casa]:[Outra]])","v":{"v":1,"d":"100%"}}]
[null,null,"Composição",{"v":2,"d":"2.0"},{"v":0.15,"d":"15%"},{"v":0.15,"d":"15%"},{"v":0.12,"d":"12%"},{"v":0.15,"d":"15%"},{"v":0.15,"d":"15%"},{"v":0.25,"d":"25%"},{"v":0.03,"d":"3%"},{"$f":"SUM(tblAulas[[#This Row],[Trabalhos de Casa]:[Outra]])","v":{"v":1,"d":"100%"}}]

{"sheet":"Cálculos","index":3,"n_rows":657,"n_cols":40,"rows_kept":657,"hidden":true}
[null,"Cálculos"]
[null,null,"Esta folha de cálculo fornece cálculos das suas notas e média e deverá permanecer oculta. Quaisquer alterações a esta folha podem original erros."]
[]
[null,null,"Lista de Aulas Atual","Classificações (máximo de 1)",{"$nulls":24},"Cálculo da Nota"]
[null,null,"Aula",1,2,3,4,5,6,7,8,9,10,11,12,13,14,15,16,17,18,19,20,21,22,23,24,25,{"$f":"tblAulas[[#Headers],[Trabalhos de Casa]]","v":"Trabalhos de Casa"},{"$f":"tblAulas[[#Headers],[Ensaio]]","v":"Ensaio"},{"$f":"tblAulas[[#Headers],[Questionário]]","v":"Questionário"},{"$f":"tblAulas[[#Headers],[Projeto]]","v":"Projeto"},{"$f":"tblAulas[[#Headers],[Testes Intermédios]]","v":"Testes Intermédios"},{"$f":"tblAulas[[#Headers],[Exame Final]]","v":"Exame Final"},{"$f":"tblAulas[[#Headers],[Outra]]","v":"Outra"},"Total","Total Pontos Possíveis","Total %","Nota Quantitativa","Nota Qualitativa"]
[null,null,{"$f":"IF(Definições!C9=\"\",\"\",Definições!C9)","v":"Francês Moderno"},{"$f":"IFERROR(INDEX(tblPontuaçõesDeAula[],MATCH($C6:$C30&D$5:AB$5,Cálculos!$C$33:$C$657,0),4),\"\")","v":{"v":0.8,"d":"80%"}},{"v":0.9,"d":"90%"},{"v":0.8,"d":"80%"},"","","","","","","","","","","","","","","","","","","","","","",{"$f":"IFERROR(AVERAGEIFS(tblPontuaçõesDeAula[Classificação],tblPontuaçõesDeAula[Aula],Cálculos!$C6,tblPontuaçõesDeAula[Tipo],Cálculos!AC$5)*Definições!E9,\"\")","v":0.08333333333333334},{"$f":"IFERROR(AVERAGEIFS(tblPontuaçõesDeAula[Classificação],tblPontuaçõesDeAula[Aula],Cálculos!$C6,tblPontuaçõesDeAula[Tipo],Cálculos!AD$5)*Definições!F9,\"\")","v":""},{"$f":"IFERROR(AVERAGEIFS(tblPontuaçõesDeAula[Classificação],tblPontuaçõesDeAula[Aula],Cálculos!$C6,tblPontuaçõesDeAula[Tipo],Cálculos!AE$5)*Definições!G9,\"\")","v":""},{"$f":"IFERROR(AVERAGEIFS(tblPontuaçõesDeAula[Classificação],tblPontuaçõesDeAula[Aula],Cálculos!$C6,tblPontuaçõesDeAula[Tipo],Cálculos!AF$5)*Definições!H9,\"\")","v":""},{"$f":"IFERROR(AVERAGEIFS(tblPontuaçõesDeAula[Classificação],tblPontuaçõesDeAula[Aula],Cálculos!$C6,tblPontuaçõesDeAula[Tipo],Cálculos!AG$5)*Definições!I9,\"\")","v":""},{"$f":"IFERROR(AVERAGEIFS(tblPontuaçõesDeAula[Classificação],tblPontuaçõesDeAula[Aula],Cálculos!$C6,tblPontuaçõesDeAula[Tipo],Cálculos!AH$5)*Definições!J9,\"\")","v":""},{"$f":"IFERROR(AVERAGEIFS(tblPontuaçõesDeAula[Classificação],tblPontuaçõesDeAula[Aula],Cálculos!$C6,tblPontuaçõesDeAula[Tipo],Cálculos!AI$5)*Definições!K9,\"\")","v":""},{"$f":"SUM(AC6:AI6)","v":0.08333333333333334},{"$f":"SUMIFS(Definições!E9:K9,Cálculos!AC6:AI6,\">0\")","v":0.1},{"$f":"IFERROR(AJ6/AK6,\"\")","v":{"v":0.8333333333333334,"d":"83%"}},{"$f":"IFERROR(HLOOKUP(AL6,lstMapaDeNotas,3),\"\")","v":3},{"$f":"IFERROR(HLOOKUP(AL6,lstMapaDeNotas,2),\"\")","v":"B"}]
[null,null,{"$f":"IF(Definições!C10=\"\",\"\",Definições!C10)","v":"Física"},{"v":0.95,"d":"95%"},"","","","","","","","","","","","","","","","","","","","","","","","",{"$f":"IFERROR(AVERAGEIFS(tblPontuaçõesDeAula[Classificação],tblPontuaçõesDeAula[Aula],Cálculos!$C7,tblPontuaçõesDeAula[Tipo],Cálculos!AC$5)*Definições!E10,\"\")","v":0.1425},{"$f":"IFERROR(AVERAGEIFS(tblPontuaçõesDeAula[Classificação],tblPontuaçõesDeAula[Aula],Cálculos!$C7,tblPontuaçõesDeAula[Tipo],Cálculos!AD$5)*Definições!F10,\"\")","v":""},{"$f":"IFERROR(AVERAGEIFS(tblPontuaçõesDeAula[Classificação],tblPontuaçõesDeAula[Aula],Cálculos!$C7,tblPontuaçõesDeAula[Tipo],Cálculos!AE$5)*Definições!G10,\"\")","v":""},{"$f":"IFERROR(AVERAGEIFS(tblPontuaçõesDeAula[Classificação],tblPontuaçõesDeAula[Aula],Cálculos!$C7,tblPontuaçõesDeAula[Tipo],Cálculos!AF$5)*Definições!H10,\"\")","v":""},{"$f":"IFERROR(AVERAGEIFS(tblPontuaçõesDeAula[Classificação],tblPontuaçõesDeAula[Aula],Cálculos!$C7,tblPontuaçõesDeAula[Tipo],Cálculos!AG$5)*Definições!I10,\"\")","v":""},{"$f":"IFERROR(AVERAGEIFS(tblPontuaçõesDeAula[Classificação],tblPontuaçõesDeAula[Aula],Cálculos!$C7,tblPontuaçõesDeAula[Tipo],Cálculos!AH$5)*Definições!J10,\"\")","v":""},{"$f":"IFERROR(AVERAGEIFS(tblPontuaçõesDeAula[Classificação],tblPontuaçõesDeAula[Aula],Cálculos!$C7,tblPontuaçõesDeAula[Tipo],Cálculos!AI$5)*Definições!K10,\"\")","v":""},{"$f":"SUM(AC7:AI7)","v":0.1425},{"$f":"SUMIFS(Definições!E10:K10,Cálculos!AC7:AI7,\">0\")","v":0.15},{"$f":"IFERROR(AJ7/AK7,\"\")","v":{"v":0.95,"d":"95%"}},4,"A"]
[null,null,{"$f":"IF(Definições!C11=\"\",\"\",Definições!C11)","v":"Matemática 1"},{"v":0.8,"d":"80%"},{"v":0.8,"d":"80%"},"","","","","","","","","","","","","","","","","","","","","","","",{"$f":"IFERROR(AVERAGEIFS(tblPontuaçõesDeAula[Classificação],tblPontuaçõesDeAula[Aula],Cálculos!$C8,tblPontuaçõesDeAula[Tipo],Cálculos!AC$5)*Definições!E11,\"\")","v":0.08000000000000002},{"$f":"IFERROR(AVERAGEIFS(tblPontuaçõesDeAula[Classificação],tblPontuaçõesDeAula[Aula],Cálculos!$C8,tblPontuaçõesDeAula[Tipo],Cálculos!AD$5)*Definições!F11,\"\")","v":""},{"$f":"IFERROR(AVERAGEIFS(tblPontuaçõesDeAula[Classificação],tblPontuaçõesDeAula[Aula],Cálculos!$C8,tblPontuaçõesDeAula[Tipo],Cálculos!AE$5)*Definições!G11,\"\")","v":""},{"$f":"IFERROR(AVERAGEIFS(tblPontuaçõesDeAula[Classificação],tblPontuaçõesDeAula[Aula],Cálculos!$C8,tblPontuaçõesDeAula[Tipo],Cálculos!AF$5)*Definições!H11,\"\")","v":""},{"$f":"IFERROR(AVERAGEIFS(tblPontuaçõesDeAula[Classificação],tblPontuaçõesDeAula[Aula],Cálculos!$C8,tblPontuaçõesDeAula[Tipo],Cálculos!AG$5)*Definições!I11,\"\")","v":""},{"$f":"IFERROR(AVERAGEIFS(tblPontuaçõesDeAula[Classificação],tblPontuaçõesDeAula[Aula],Cálculos!$C8,tblPontuaçõesDeAula[Tipo],Cálculos!AH$5)*Definições!J11,\"\")","v":""},{"$f":"IFERROR(AVERAGEIFS(tblPontuaçõesDeAula[Classificação],tblPontuaçõesDeAula[Aula],Cálculos!$C8,tblPontuaçõesDeAula[Tipo],Cálculos!AI$5)*Definições!K11,\"\")","v":""},0.08000000000000002,{"$f":"SUMIFS(Definições!E11:K11,Cálculos!AC8:AI8,\">0\")","v":0.1},{"v":0.8000000000000002,"d":"80%"},2.67,"B-"]
[null,null,{"$f":"IF(Definições!C12=\"\",\"\",Definições!C12)","v":"Matemática 2"},{"v":0.85,"d":"85%"},{"v":0.95,"d":"95%"},"","","","","","","","","","","","","","","","","","","","","","","",{"$f":"IFERROR(AVERAGEIFS(tblPontuaçõesDeAula[Classificação],tblPontuaçõesDeAula[Aula],Cálculos!$C9,tblPontuaçõesDeAula[Tipo],Cálculos!AC$5)*Definições!E12,\"\")","v":0.1275},{"$f":"IFERROR(AVERAGEIFS(tblPontuaçõesDeAula[Classificação],tblPontuaçõesDeAula[Aula],Cálculos!$C9,tblPontuaçõesDeAula[Tipo],Cálculos!AD$5)*Definições!F12,\"\")","v":""},{"$f":"IFERROR(AVERAGEIFS(tblPontuaçõesDeAula[Classificação],tblPontuaçõesDeAula[Aula],Cálculos!$C9,tblPontuaçõesDeAula[Tipo],Cálculos!AE$5)*Definições!G12,\"\")","v":0.095},{"$f":"IFERROR(AVERAGEIFS(tblPontuaçõesDeAula[Classificação],tblPontuaçõesDeAula[Aula],Cálculos!$C9,tblPontuaçõesDeAula[Tipo],Cálculos!AF$5)*Definições!H12,\"\")","v":""},{"$f":"IFERROR(AVERAGEIFS(tblPontuaçõesDeAula[Classificação],tblPontuaçõesDeAula[Aula],Cálculos!$C9,tblPontuaçõesDeAula[Tipo],Cálculos!AG$5)*Definições!I12,\"\")","v":""},{"$f":"IFERROR(AVERAGEIFS(tblPontuaçõesDeAula[Classificação],tblPontuaçõesDeAula[Aula],Cálculos!$C9,tblPontuaçõesDeAula[Tipo],Cálculos!AH$5)*Definições!J12,\"\")","v":""},{"$f":"IFERROR(AVERAGEIFS(tblPontuaçõesDeAula[Classificação],tblPontuaçõesDeAula[Aula],Cálculos!$C9,tblPontuaçõesDeAula[Tipo],Cálculos!AI$5)*Definições!K12,\"\")","v":""},0.2225,{"$f":"SUMIFS(Definições!E12:K12,Cálculos!AC9:AI9,\">0\")","v":0.25},{"v":0.89,"d":"89%"},3.33,"B+"]
[null,null,{"$f":"IF(Definições!C13=\"\",\"\",Definições!C13)","v":"Programação Avançada em Java"},{"v":0.75,"d":"75%"},"","","","","","","","","","","","","","","","","","","","","","","","",{"$f":"IFERROR(AVERAGEIFS(tblPontuaçõesDeAula[Classificação],tblPontuaçõesDeAula[Aula],Cálculos!$C10,tblPontuaçõesDeAula[Tipo],Cálculos!AC$5)*Definições!E13,\"\")","v":""},{"$f":"IFERROR(AVERAGEIFS(tblPontuaçõesDeAula[Classificação],tblPontuaçõesDeAula[Aula],Cálculos!$C10,tblPontuaçõesDeAula[Tipo],Cálculos!AD$5)*Definições!F13,\"\")","v":""},{"$f":"IFERROR(AVERAGEIFS(tblPontuaçõesDeAula[Classificação],tblPontuaçõesDeAula[Aula],Cálculos!$C10,tblPontuaçõesDeAula[Tipo],Cálculos!AE$5)*Definições!G13,\"\")","v":""},{"$f":"IFERROR(AVERAGEIFS(tblPontuaçõesDeAula[Classificação],tblPontuaçõesDeAula[Aula],Cálculos!$C10,tblPontuaçõesDeAula[Tipo],Cálculos!AF$5)*Definições!H13,\"\")","v":""},{"$f":"IFERROR(AVERAGEIFS(tblPontuaçõesDeAula[Classificação],tblPontuaçõesDeAula[Aula],Cálculos!$C10,tblPontuaçõesDeAula[Tipo],Cálculos!AG$5)*Definições!I13,\"\")","v":0.15000000000000002},{"$f":"IFERROR(AVERAGEIFS(tblPontuaçõesDeAula[Classificação],tblPontuaçõesDeAula[Aula],Cálculos!$C10,tblPontuaçõesDeAula[Tipo],Cálculos!AH$5)*Definições!J13,\"\")","v":""},{"$f":"IFERROR(AVERAGEIFS(tblPontuaçõesDeAula[Classificação],tblPontuaçõesDeAula[Aula],Cálculos!$C10,tblPontuaçõesDeAula[Tipo],Cálculos!AI$5)*Definições!K13,\"\")","v":""},0.15000000000000002,{"$f":"SUMIFS(Definições!E13:K13,Cálculos!AC10:AI10,\">0\")","v":0.2},{"v":0.7500000000000001,"d":"75%"},2,"C"]
[null,null,{"$f":"IF(Definições!C14=\"\",\"\",Definições!C14)","v":"Espanhol"},{"v":0.5,"d":"50%"},"","","","","","","","","","","","","","","","","","","","","","","","",{"$f":"IFERROR(AVERAGEIFS(tblPontuaçõesDeAula[Classificação],tblPontuaçõesDeAula[Aula],Cálculos!$C11,tblPontuaçõesDeAula[Tipo],Cálculos!AC$5)*Definições!E14,\"\")","v":0.05},{"$f":"IFERROR(AVERAGEIFS(tblPontuaçõesDeAula[Classificação],tblPontuaçõesDeAula[Aula],Cálculos!$C11,tblPontuaçõesDeAula[Tipo],Cálculos!AD$5)*Definições!F14,\"\")","v":""},{"$f":"IFERROR(AVERAGEIFS(tblPontuaçõesDeAula[Classificação],tblPontuaçõesDeAula[Aula],Cálculos!$C11,tblPontuaçõesDeAula[Tipo],Cálculos!AE$5)*Definições!G14,\"\")","v":""},{"$f":"IFERROR(AVERAGEIFS(tblPontuaçõesDeAula[Classificação],tblPontuaçõesDeAula[Aula],Cálculos!$C11,tblPontuaçõesDeAula[Tipo],Cálculos!AF$5)*Definições!H14,\"\")","v":""},{"$f":"IFERROR(AVERAGEIFS(tblPontuaçõesDeAula[Classificação],tblPontuaçõesDeAula[Aula],Cálculos!$C11,tblPontuaçõesDeAula[Tipo],Cálculos!AG$5)*Definições!I14,\"\")","v":""},{"$f":"IFERROR(AVERAGEIFS(tblPontuaçõesDeAula[Classificação],tblPontuaçõesDeAula[Aula],Cálculos!$C11,tblPontuaçõesDeAula[Tipo],Cálculos!AH$5)*Definições!J14,\"\")","v":""},{"$f":"IFERROR(AVERAGEIFS(tblPontuaçõesDeAula[Classificação],tblPontuaçõesDeAula[Aula],Cálculos!$C11,tblPontuaçõesDeAula[Tipo],Cálculos!AI$5)*Definições!K14,\"\")","v":""},0.05,{"$f":"SUMIFS(Definições!E14:K14,Cálculos!AC11:AI11,\">0\")","v":0.1},{"v":0.5,"d":"50%"},0,"F"]
[null,null,{"$f":"IF(Definições!C15=\"\",\"\",Definições!C15)","v":"Composição"},{"v":0.95,"d":"95%"},"","","","","","","","","","","","","","","","","","","","","","","","",{"$f":"IFERROR(AVERAGEIFS(tblPontuaçõesDeAula[Classificação],tblPontuaçõesDeAula[Aula],Cálculos!$C12,tblPontuaçõesDeAula[Tipo],Cálculos!AC$5)*Definições!E15,\"\")","v":""},{"$f":"IFERROR(AVERAGEIFS(tblPontuaçõesDeAula[Classificação],tblPontuaçõesDeAula[Aula],Cálculos!$C12,tblPontuaçõesDeAula[Tipo],Cálculos!AD$5)*Definições!F15,\"\")","v":0.1425},{"$f":"IFERROR(AVERAGEIFS(tblPontuaçõesDeAula[Classificação],tblPontuaçõesDeAula[Aula],Cálculos!$C12,tblPontuaçõesDeAula[Tipo],Cálculos!AE$5)*Definições!G15,\"\")","v":""},{"$f":"IFERROR(AVERAGEIFS(tblPontuaçõesDeAula[Classificação],tblPontuaçõesDeAula[Aula],Cálculos!$C12,tblPontuaçõesDeAula[Tipo],Cálculos!AF$5)*Definições!H15,\"\")","v":""},{"$f":"IFERROR(AVERAGEIFS(tblPontuaçõesDeAula[Classificação],tblPontuaçõesDeAula[Aula],Cálculos!$C12,tblPontuaçõesDeAula[Tipo],Cálculos!AG$5)*Definições!I15,\"\")","v":""},{"$f":"IFERROR(AVERAGEIFS(tblPontuaçõesDeAula[Classificação],tblPontuaçõesDeAula[Aula],Cálculos!$C12,tblPontuaçõesDeAula[Tipo],Cálculos!AH$5)*Definições!J15,\"\")","v":""},{"$f":"IFERROR(AVERAGEIFS(tblPontuaçõesDeAula[Classificação],tblPontuaçõesDeAula[Aula],Cálculos!$C12,tblPontuaçõesDeAula[Tipo],Cálculos!AI$5)*Definições!K15,\"\")","v":""},0.1425,{"$f":"SUMIFS(Definições!E15:K15,Cálculos!AC12:AI12,\">0\")","v":0.15},{"v":0.95,"d":"95%"},4,"A"]
[null,null,{"$f":"IF(Definições!C16=\"\",\"\",Definições!C16)","v":""},"","","","","","","","","","","","","","","","","","","","","","","","","",{"$f":"IFERROR(AVERAGEIFS(tblPontuaçõesDeAula[Classificação],tblPontuaçõesDeAula[Aula],Cálculos!$C13,tblPontuaçõesDeAula[Tipo],Cálculos!AC$5)*Definições!E16,\"\")","v":""},{"$f":"IFERROR(AVERAGEIFS(tblPontuaçõesDeAula[Classificação],tblPontuaçõesDeAula[Aula],Cálculos!$C13,tblPontuaçõesDeAula[Tipo],Cálculos!AD$5)*Definições!F16,\"\")","v":""},{"$f":"IFERROR(AVERAGEIFS(tblPontuaçõesDeAula[Classificação],tblPontuaçõesDeAula[Aula],Cálculos!$C13,tblPontuaçõesDeAula[Tipo],Cálculos!AE$5)*Definições!G16,\"\")","v":""},{"$f":"IFERROR(AVERAGEIFS(tblPontuaçõesDeAula[Classificação],tblPontuaçõesDeAula[Aula],Cálculos!$C13,tblPontuaçõesDeAula[Tipo],Cálculos!AF$5)*Definições!H16,\"\")","v":""},{"$f":"IFERROR(AVERAGEIFS(tblPontuaçõesDeAula[Classificação],tblPontuaçõesDeAula[Aula],Cálculos!$C13,tblPontuaçõesDeAula[Tipo],Cálculos!AG$5)*Definições!I16,\"\")","v":""},{"$f":"IFERROR(AVERAGEIFS(tblPontuaçõesDeAula[Classificação],tblPontuaçõesDeAula[Aula],Cálculos!$C13,tblPontuaçõesDeAula[Tipo],Cálculos!AH$5)*Definições!J16,\"\")","v":""},{"$f":"IFERROR(AVERAGEIFS(tblPontuaçõesDeAula[Classificação],tblPontuaçõesDeAula[Aula],Cálculos!$C13,tblPontuaçõesDeAula[Tipo],Cálculos!AI$5)*Definições!K16,\"\")","v":""},{"$f":"SUM(AC13:AI13)","v":0},{"$f":"SUMIFS(Definições!E16:K16,Cálculos!AC13:AI13,\">0\")","v":0},{"$f":"IFERROR(AJ13/AK13,\"\")","v":""},"",""]
[null,null,{"$f":"IF(Definições!C17=\"\",\"\",Definições!C17)","v":""},"","","","","","","","","","","","","","","","","","","","","","","","","",{"$f":"IFERROR(AVERAGEIFS(tblPontuaçõesDeAula[Classificação],tblPontuaçõesDeAula[Aula],Cálculos!$C14,tblPontuaçõesDeAula[Tipo],Cálculos!AC$5)*Definições!E17,\"\")","v":""},{"$f":"IFERROR(AVERAGEIFS(tblPontuaçõesDeAula[Classificação],tblPontuaçõesDeAula[Aula],Cálculos!$C14,tblPontuaçõesDeAula[Tipo],Cálculos!AD$5)*Definições!F17,\"\")","v":""},{"$f":"IFERROR(AVERAGEIFS(tblPontuaçõesDeAula[Classificação],tblPontuaçõesDeAula[Aula],Cálculos!$C14,tblPontuaçõesDeAula[Tipo],Cálculos!AE$5)*Definições!G17,\"\")","v":""},{"$f":"IFERROR(AVERAGEIFS(tblPontuaçõesDeAula[Classificação],tblPontuaçõesDeAula[Aula],Cálculos!$C14,tblPontuaçõesDeAula[Tipo],Cálculos!AF$5)*Definições!H17,\"\")","v":""},{"$f":"IFERROR(AVERAGEIFS(tblPontuaçõesDeAula[Classificação],tblPontuaçõesDeAula[Aula],Cálculos!$C14,tblPontuaçõesDeAula[Tipo],Cálculos!AG$5)*Definições!I17,\"\")","v":""},{"$f":"IFERROR(AVERAGEIFS(tblPontuaçõesDeAula[Classificação],tblPontuaçõesDeAula[Aula],Cálculos!$C14,tblPontuaçõesDeAula[Tipo],Cálculos!AH$5)*Definições!J17,\"\")","v":""},{"$f":"IFERROR(AVERAGEIFS(tblPontuaçõesDeAula[Classificação],tblPontuaçõesDeAula[Aula],Cálculos!$C14,tblPontuaçõesDeAula[Tipo],Cálculos!AI$5)*Definições!K17,\"\")","v":""},0,{"$f":"SUMIFS(Definições!E17:K17,Cálculos!AC14:AI14,\">0\")","v":0},"","",""]
[null,null,{"$f":"IF(Definições!C18=\"\",\"\",Definições!C18)","v":""},"","","","","","","","","","","","","","","","","","","","","","","","","",{"$f":"IFERROR(AVERAGEIFS(tblPontuaçõesDeAula[Classificação],tblPontuaçõesDeAula[Aula],Cálculos!$C15,tblPontuaçõesDeAula[Tipo],Cálculos!AC$5)*Definições!E18,\"\")","v":""},{"$f":"IFERROR(AVERAGEIFS(tblPontuaçõesDeAula[Classificação],tblPontuaçõesDeAula[Aula],Cálculos!$C15,tblPontuaçõesDeAula[Tipo],Cálculos!AD$5)*Definições!F18,\"\")","v":""},{"$f":"IFERROR(AVERAGEIFS(tblPontuaçõesDeAula[Classificação],tblPontuaçõesDeAula[Aula],Cálculos!$C15,tblPontuaçõesDeAula[Tipo],Cálculos!AE$5)*Definições!G18,\"\")","v":""},{"$f":"IFERROR(AVERAGEIFS(tblPontuaçõesDeAula[Classificação],tblPontuaçõesDeAula[Aula],Cálculos!$C15,tblPontuaçõesDeAula[Tipo],Cálculos!AF$5)*Definições!H18,\"\")","v":""},{"$f":"IFERROR(AVERAGEIFS(tblPontuaçõesDeAula[Classificação],tblPontuaçõesDeAula[Aula],Cálculos!$C15,tblPontuaçõesDeAula[Tipo],Cálculos!AG$5)*Definições!I18,\"\")","v":""},{"$f":"IFERROR(AVERAGEIFS(tblPontuaçõesDeAula[Classificação],tblPontuaçõesDeAula[Aula],Cálculos!$C15,tblPontuaçõesDeAula[Tipo],Cálculos!AH$5)*Definições!J18,\"\")","v":""},{"$f":"IFERROR(AVERAGEIFS(tblPontuaçõesDeAula[Classificação],tblPontuaçõesDeAula[Aula],Cálculos!$C15,tblPontuaçõesDeAula[Tipo],Cálculos!AI$5)*Definições!K18,\"\")","v":""},0,{"$f":"SUMIFS(Definições!E18:K18,Cálculos!AC15:AI15,\">0\")","v":0},"","",""]
[null,null,{"$f":"IF(Definições!C19=\"\",\"\",Definições!C19)","v":""},"","","","","","","","","","","","","","","","","","","","","","","","","",{"$f":"IFERROR(AVERAGEIFS(tblPontuaçõesDeAula[Classificação],tblPontuaçõesDeAula[Aula],Cálculos!$C16,tblPontuaçõesDeAula[Tipo],Cálculos!AC$5)*Definições!E19,\"\")","v":""},{"$f":"IFERROR(AVERAGEIFS(tblPontuaçõesDeAula[Classificação],tblPontuaçõesDeAula[Aula],Cálculos!$C16,tblPontuaçõesDeAula[Tipo],Cálculos!AD$5)*Definições!F19,\"\")","v":""},{"$f":"IFERROR(AVERAGEIFS(tblPontuaçõesDeAula[Classificação],tblPontuaçõesDeAula[Aula],Cálculos!$C16,tblPontuaçõesDeAula[Tipo],Cálculos!AE$5)*Definições!G19,\"\")","v":""},{"$f":"IFERROR(AVERAGEIFS(tblPontuaçõesDeAula[Classificação],tblPontuaçõesDeAula[Aula],Cálculos!$C16,tblPontuaçõesDeAula[Tipo],Cálculos!AF$5)*Definições!H19,\"\")","v":""},{"$f":"IFERROR(AVERAGEIFS(tblPontuaçõesDeAula[Classificação],tblPontuaçõesDeAula[Aula],Cálculos!$C16,tblPontuaçõesDeAula[Tipo],Cálculos!AG$5)*Definições!I19,\"\")","v":""},{"$f":"IFERROR(AVERAGEIFS(tblPontuaçõesDeAula[Classificação],tblPontuaçõesDeAula[Aula],Cálculos!$C16,tblPontuaçõesDeAula[Tipo],Cálculos!AH$5)*Definições!J19,\"\")","v":""},{"$f":"IFERROR(AVERAGEIFS(tblPontuaçõesDeAula[Classificação],tblPontuaçõesDeAula[Aula],Cálculos!$C16,tblPontuaçõesDeAula[Tipo],Cálculos!AI$5)*Definições!K19,\"\")","v":""},0,{"$f":"SUMIFS(Definições!E19:K19,Cálculos!AC16:AI16,\">0\")","v":0},"","",""]
[null,null,{"$f":"IF(Definições!C20=\"\",\"\",Definições!C20)","v":""},"","","","","","","","","","","","","","","","","","","","","","","","","",{"$f":"IFERROR(AVERAGEIFS(tblPontuaçõesDeAula[Classificação],tblPontuaçõesDeAula[Aula],Cálculos!$C17,tblPontuaçõesDeAula[Tipo],Cálculos!AC$5)*Definições!E20,\"\")","v":""},{"$f":"IFERROR(AVERAGEIFS(tblPontuaçõesDeAula[Classificação],tblPontuaçõesDeAula[Aula],Cálculos!$C17,tblPontuaçõesDeAula[Tipo],Cálculos!AD$5)*Definições!F20,\"\")","v":""},{"$f":"IFERROR(AVERAGEIFS(tblPontuaçõesDeAula[Classificação],tblPontuaçõesDeAula[Aula],Cálculos!$C17,tblPontuaçõesDeAula[Tipo],Cálculos!AE$5)*Definições!G20,\"\")","v":""},{"$f":"IFERROR(AVERAGEIFS(tblPontuaçõesDeAula[Classificação],tblPontuaçõesDeAula[Aula],Cálculos!$C17,tblPontuaçõesDeAula[Tipo],Cálculos!AF$5)*Definições!H20,\"\")","v":""},{"$f":"IFERROR(AVERAGEIFS(tblPontuaçõesDeAula[Classificação],tblPontuaçõesDeAula[Aula],Cálculos!$C17,tblPontuaçõesDeAula[Tipo],Cálculos!AG$5)*Definições!I20,\"\")","v":""},{"$f":"IFERROR(AVERAGEIFS(tblPontuaçõesDeAula[Classificação],tblPontuaçõesDeAula[Aula],Cálculos!$C17,tblPontuaçõesDeAula[Tipo],Cálculos!AH$5)*Definições!J20,\"\")","v":""},{"$f":"IFERROR(AVERAGEIFS(tblPontuaçõesDeAula[Classificação],tblPontuaçõesDeAula[Aula],Cálculos!$C17,tblPontuaçõesDeAula[Tipo],Cálculos!AI$5)*Definições!K20,\"\")","v":""},0,{"$f":"SUMIFS(Definições!E20:K20,Cálculos!AC17:AI17,\">0\")","v":0},"","",""]
[null,null,{"$f":"IF(Definições!C21=\"\",\"\",Definições!C21)","v":""},"","","","","","","","","","","","","","","","","","","","","","","","","",{"$f":"IFERROR(AVERAGEIFS(tblPontuaçõesDeAula[Classificação],tblPontuaçõesDeAula[Aula],Cálculos!$C18,tblPontuaçõesDeAula[Tipo],Cálculos!AC$5)*Definições!E21,\"\")","v":""},{"$f":"IFERROR(AVERAGEIFS(tblPontuaçõesDeAula[Classificação],tblPontuaçõesDeAula[Aula],Cálculos!$C18,tblPontuaçõesDeAula[Tipo],Cálculos!AD$5)*Definições!F21,\"\")","v":""},{"$f":"IFERROR(AVERAGEIFS(tblPontuaçõesDeAula[Classificação],tblPontuaçõesDeAula[Aula],Cálculos!$C18,tblPontuaçõesDeAula[Tipo],Cálculos!AE$5)*Definições!G21,\"\")","v":""},{"$f":"IFERROR(AVERAGEIFS(tblPontuaçõesDeAula[Classificação],tblPontuaçõesDeAula[Aula],Cálculos!$C18,tblPontuaçõesDeAula[Tipo],Cálculos!AF$5)*Definições!H21,\"\")","v":""},{"$f":"IFERROR(AVERAGEIFS(tblPontuaçõesDeAula[Classificação],tblPontuaçõesDeAula[Aula],Cálculos!$C18,tblPontuaçõesDeAula[Tipo],Cálculos!AG$5)*Definições!I21,\"\")","v":""},{"$f":"IFERROR(AVERAGEIFS(tblPontuaçõesDeAula[Classificação],tblPontuaçõesDeAula[Aula],Cálculos!$C18,tblPontuaçõesDeAula[Tipo],Cálculos!AH$5)*Definições!J21,\"\")","v":""},{"$f":"IFERROR(AVERAGEIFS(tblPontuaçõesDeAula[Classificação],tblPontuaçõesDeAula[Aula],Cálculos!$C18,tblPontuaçõesDeAula[Tipo],Cálculos!AI$5)*Definições!K21,\"\")","v":""},0,{"$f":"SUMIFS(Definições!E21:K21,Cálculos!AC18:AI18,\">0\")","v":0},"","",""]
[null,null,{"$f":"IF(Definições!C22=\"\",\"\",Definições!C22)","v":""},"","","","","","","","","","","","","","","","","","","","","","","","","",{"$f":"IFERROR(AVERAGEIFS(tblPontuaçõesDeAula[Classificação],tblPontuaçõesDeAula[Aula],Cálculos!$C19,tblPontuaçõesDeAula[Tipo],Cálculos!AC$5)*Definições!E22,\"\")","v":""},{"$f":"IFERROR(AVERAGEIFS(tblPontuaçõesDeAula[Classificação],tblPontuaçõesDeAula[Aula],Cálculos!$C19,tblPontuaçõesDeAula[Tipo],Cálculos!AD$5)*Definições!F22,\"\")","v":""},{"$f":"IFERROR(AVERAGEIFS(tblPontuaçõesDeAula[Classificação],tblPontuaçõesDeAula[Aula],Cálculos!$C19,tblPontuaçõesDeAula[Tipo],Cálculos!AE$5)*Definições!G22,\"\")","v":""},{"$f":"IFERROR(AVERAGEIFS(tblPontuaçõesDeAula[Classificação],tblPontuaçõesDeAula[Aula],Cálculos!$C19,tblPontuaçõesDeAula[Tipo],Cálculos!AF$5)*Definições!H22,\"\")","v":""},{"$f":"IFERROR(AVERAGEIFS(tblPontuaçõesDeAula[Classificação],tblPontuaçõesDeAula[Aula],Cálculos!$C19,tblPontuaçõesDeAula[Tipo],Cálculos!AG$5)*Definições!I22,\"\")","v":""},{"$f":"IFERROR(AVERAGEIFS(tblPontuaçõesDeAula[Classificação],tblPontuaçõesDeAula[Aula],Cálculos!$C19,tblPontuaçõesDeAula[Tipo],Cálculos!AH$5)*Definições!J22,\"\")","v":""},{"$f":"IFERROR(AVERAGEIFS(tblPontuaçõesDeAula[Classificação],tblPontuaçõesDeAula[Aula],Cálculos!$C19,tblPontuaçõesDeAula[Tipo],Cálculos!AI$5)*Definições!K22,\"\")","v":""},0,{"$f":"SUMIFS(Definições!E22:K22,Cálculos!AC19:AI19,\">0\")","v":0},"","",""]
[null,null,{"$f":"IF(Definições!C23=\"\",\"\",Definições!C23)","v":""},"","","","","","","","","","","","","","","","","","","","","","","","","",{"$f":"IFERROR(AVERAGEIFS(tblPontuaçõesDeAula[Classificação],tblPontuaçõesDeAula[Aula],Cálculos!$C20,tblPontuaçõesDeAula[Tipo],Cálculos!AC$5)*Definições!E23,\"\")","v":""},{"$f":"IFERROR(AVERAGEIFS(tblPontuaçõesDeAula[Classificação],tblPontuaçõesDeAula[Aula],Cálculos!$C20,tblPontuaçõesDeAula[Tipo],Cálculos!AD$5)*Definições!F23,\"\")","v":""},{"$f":"IFERROR(AVERAGEIFS(tblPontuaçõesDeAula[Classificação],tblPontuaçõesDeAula[Aula],Cálculos!$C20,tblPontuaçõesDeAula[Tipo],Cálculos!AE$5)*Definições!G23,\"\")","v":""},{"$f":"IFERROR(AVERAGEIFS(tblPontuaçõesDeAula[Classificação],tblPontuaçõesDeAula[Aula],Cálculos!$C20,tblPontuaçõesDeAula[Tipo],Cálculos!AF$5)*Definições!H23,\"\")","v":""},{"$f":"IFERROR(AVERAGEIFS(tblPontuaçõesDeAula[Classificação],tblPontuaçõesDeAula[Aula],Cálculos!$C20,tblPontuaçõesDeAula[Tipo],Cálculos!AG$5)*Definições!I23,\"\")","v":""},{"$f":"IFERROR(AVERAGEIFS(tblPontuaçõesDeAula[Classificação],tblPontuaçõesDeAula[Aula],Cálculos!$C20,tblPontuaçõesDeAula[Tipo],Cálculos!AH$5)*Definições!J23,\"\")","v":""},{"$f":"IFERROR(AVERAGEIFS(tblPontuaçõesDeAula[Classificação],tblPontuaçõesDeAula[Aula],Cálculos!$C20,tblPontuaçõesDeAula[Tipo],Cálculos!AI$5)*Definições!K23,\"\")","v":""},0,{"$f":"SUMIFS(Definições!E23:K23,Cálculos!AC20:AI20,\">0\")","v":0},"","",""]
[null,null,{"$f":"IF(Definições!C24=\"\",\"\",Definições!C24)","v":""},"","","","","","","","","","","","","","","","","","","","","","","","","",{"$f":"IFERROR(AVERAGEIFS(tblPontuaçõesDeAula[Classificação],tblPontuaçõesDeAula[Aula],Cálculos!$C21,tblPontuaçõesDeAula[Tipo],Cálculos!AC$5)*Definições!E24,\"\")","v":""},{"$f":"IFERROR(AVERAGEIFS(tblPontuaçõesDeAula[Classificação],tblPontuaçõesDeAula[Aula],Cálculos!$C21,tblPontuaçõesDeAula[Tipo],Cálculos!AD$5)*Definições!F24,\"\")","v":""},{"$f":"IFERROR(AVERAGEIFS(tblPontuaçõesDeAula[Classificação],tblPontuaçõesDeAula[Aula],Cálculos!$C21,tblPontuaçõesDeAula[Tipo],Cálculos!AE$5)*Definições!G24,\"\")","v":""},{"$f":"IFERROR(AVERAGEIFS(tblPontuaçõesDeAula[Classificação],tblPontuaçõesDeAula[Aula],Cálculos!$C21,tblPontuaçõesDeAula[Tipo],Cálculos!AF$5)*Definições!H24,\"\")","v":""},{"$f":"IFERROR(AVERAGEIFS(tblPontuaçõesDeAula[Classificação],tblPontuaçõesDeAula[Aula],Cálculos!$C21,tblPontuaçõesDeAula[Tipo],Cálculos!AG$5)*Definições!I24,\"\")","v":""},{"$f":"IFERROR(AVERAGEIFS(tblPontuaçõesDeAula[Classificação],tblPontuaçõesDeAula[Aula],Cálculos!$C21,tblPontuaçõesDeAula[Tipo],Cálculos!AH$5)*Definições!J24,\"\")","v":""},{"$f":"IFERROR(AVERAGEIFS(tblPontuaçõesDeAula[Classificação],tblPontuaçõesDeAula[Aula],Cálculos!$C21,tblPontuaçõesDeAula[Tipo],Cálculos!AI$5)*Definições!K24,\"\")","v":""},0,{"$f":"SUMIFS(Definições!E24:K24,Cálculos!AC21:AI21,\">0\")","v":0},"","",""]
[null,null,{"$f":"IF(Definições!C25=\"\",\"\",Definições!C25)","v":""},"","","","","","","","","","","","","","","","","","","","","","","","","",{"$f":"IFERROR(AVERAGEIFS(tblPontuaçõesDeAula[Classificação],tblPontuaçõesDeAula[Aula],Cálculos!$C22,tblPontuaçõesDeAula[Tipo],Cálculos!AC$5)*Definições!E25,\"\")","v":""},{"$f":"IFERROR(AVERAGEIFS(tblPontuaçõesDeAula[Classificação],tblPontuaçõesDeAula[Aula],Cálculos!$C22,tblPontuaçõesDeAula[Tipo],Cálculos!AD$5)*Definições!F25,\"\")","v":""},{"$f":"IFERROR(AVERAGEIFS(tblPontuaçõesDeAula[Classificação],tblPontuaçõesDeAula[Aula],Cálculos!$C22,tblPontuaçõesDeAula[Tipo],Cálculos!AE$5)*Definições!G25,\"\")","v":""},{"$f":"IFERROR(AVERAGEIFS(tblPontuaçõesDeAula[Classificação],tblPontuaçõesDeAula[Aula],Cálculos!$C22,tblPontuaçõesDeAula[Tipo],Cálculos!AF$5)*Definições!H25,\"\")","v":""},{"$f":"IFERROR(AVERAGEIFS(tblPontuaçõesDeAula[Classificação],tblPontuaçõesDeAula[Aula],Cálculos!$C22,tblPontuaçõesDeAula[Tipo],Cálculos!AG$5)*Definições!I25,\"\")","v":""},{"$f":"IFERROR(AVERAGEIFS(tblPontuaçõesDeAula[Classificação],tblPontuaçõesDeAula[Aula],Cálculos!$C22,tblPontuaçõesDeAula[Tipo],Cálculos!AH$5)*Definições!J25,\"\")","v":""},{"$f":"IFERROR(AVERAGEIFS(tblPontuaçõesDeAula[Classificação],tblPontuaçõesDeAula[Aula],Cálculos!$C22,tblPontuaçõesDeAula[Tipo],Cálculos!AI$5)*Definições!K25,\"\")","v":""},0,{"$f":"SUMIFS(Definições!E25:K25,Cálculos!AC22:AI22,\">0\")","v":0},"","",""]
[null,null,{"$f":"IF(Definições!C26=\"\",\"\",Definições!C26)","v":""},"","","","","","","","","","","","","","","","","","","","","","","","","",{"$f":"IFERROR(AVERAGEIFS(tblPontuaçõesDeAula[Classificação],tblPontuaçõesDeAula[Aula],Cálculos!$C23,tblPontuaçõesDeAula[Tipo],Cálculos!AC$5)*Definições!E26,\"\")","v":""},{"$f":"IFERROR(AVERAGEIFS(tblPontuaçõesDeAula[Classificação],tblPontuaçõesDeAula[Aula],Cálculos!$C23,tblPontuaçõesDeAula[Tipo],Cálculos!AD$5)*Definições!F26,\"\")","v":""},{"$f":"IFERROR(AVERAGEIFS(tblPontuaçõesDeAula[Classificação],tblPontuaçõesDeAula[Aula],Cálculos!$C23,tblPontuaçõesDeAula[Tipo],Cálculos!AE$5)*Definições!G26,\"\")","v":""},{"$f":"IFERROR(AVERAGEIFS(tblPontuaçõesDeAula[Classificação],tblPontuaçõesDeAula[Aula],Cálculos!$C23,tblPontuaçõesDeAula[Tipo],Cálculos!AF$5)*Definições!H26,\"\")","v":""},{"$f":"IFERROR(AVERAGEIFS(tblPontuaçõesDeAula[Classificação],tblPontuaçõesDeAula[Aula],Cálculos!$C23,tblPontuaçõesDeAula[Tipo],Cálculos!AG$5)*Definições!I26,\"\")","v":""},{"$f":"IFERROR(AVERAGEIFS(tblPontuaçõesDeAula[Classificação],tblPontuaçõesDeAula[Aula],Cálculos!$C23,tblPontuaçõesDeAula[Tipo],Cálculos!AH$5)*Definições!J26,\"\")","v":""},{"$f":"IFERROR(AVERAGEIFS(tblPontuaçõesDeAula[Classificação],tblPontuaçõesDeAula[Aula],Cálculos!$C23,tblPontuaçõesDeAula[Tipo],Cálculos!AI$5)*Definições!K26,\"\")","v":""},0,{"$f":"SUMIFS(Definições!E26:K26,Cálculos!AC23:AI23,\">0\")","v":0},"","",""]
[null,null,{"$f":"IF(Definições!C27=\"\",\"\",Definições!C27)","v":""},"","","","","","","","","","","","","","","","","","","","","","","","","",{"$f":"IFERROR(AVERAGEIFS(tblPontuaçõesDeAula[Classificação],tblPontuaçõesDeAula[Aula],Cálculos!$C24,tblPontuaçõesDeAula[Tipo],Cálculos!AC$5)*Definições!E27,\"\")","v":""},{"$f":"IFERROR(AVERAGEIFS(tblPontuaçõesDeAula[Classificação],tblPontuaçõesDeAula[Aula],Cálculos!$C24,tblPontuaçõesDeAula[Tipo],Cálculos!AD$5)*Definições!F27,\"\")","v":""},{"$f":"IFERROR(AVERAGEIFS(tblPontuaçõesDeAula[Classificação],tblPontuaçõesDeAula[Aula],Cálculos!$C24,tblPontuaçõesDeAula[Tipo],Cálculos!AE$5)*Definições!G27,\"\")","v":""},{"$f":"IFERROR(AVERAGEIFS(tblPontuaçõesDeAula[Classificação],tblPontuaçõesDeAula[Aula],Cálculos!$C24,tblPontuaçõesDeAula[Tipo],Cálculos!AF$5)*Definições!H27,\"\")","v":""},{"$f":"IFERROR(AVERAGEIFS(tblPontuaçõesDeAula[Classificação],tblPontuaçõesDeAula[Aula],Cálculos!$C24,tblPontuaçõesDeAula[Tipo],Cálculos!AG$5)*Definições!I27,\"\")","v":""},{"$f":"IFERROR(AVERAGEIFS(tblPontuaçõesDeAula[Classificação],tblPontuaçõesDeAula[Aula],Cálculos!$C24,tblPontuaçõesDeAula[Tipo],Cálculos!AH$5)*Definições!J27,\"\")","v":""},{"$f":"IFERROR(AVERAGEIFS(tblPontuaçõesDeAula[Classificação],tblPontuaçõesDeAula[Aula],Cálculos!$C24,tblPontuaçõesDeAula[Tipo],Cálculos!AI$5)*Definições!K27,\"\")","v":""},0,{"$f":"SUMIFS(Definições!E27:K27,Cálculos!AC24:AI24,\">0\")","v":0},"","",""]
[null,null,{"$f":"IF(Definições!C28=\"\",\"\",Definições!C28)","v":""},"","","","","","","","","","","","","","","","","","","","","","","","","",{"$f":"IFERROR(AVERAGEIFS(tblPontuaçõesDeAula[Classificação],tblPontuaçõesDeAula[Aula],Cálculos!$C25,tblPontuaçõesDeAula[Tipo],Cálculos!AC$5)*Definições!E28,\"\")","v":""},{"$f":"IFERROR(AVERAGEIFS(tblPontuaçõesDeAula[Classificação],tblPontuaçõesDeAula[Aula],Cálculos!$C25,tblPontuaçõesDeAula[Tipo],Cálculos!AD$5)*Definições!F28,\"\")","v":""},{"$f":"IFERROR(AVERAGEIFS(tblPontuaçõesDeAula[Classificação],tblPontuaçõesDeAula[Aula],Cálculos!$C25,tblPontuaçõesDeAula[Tipo],Cálculos!AE$5)*Definições!G28,\"\")","v":""},{"$f":"IFERROR(AVERAGEIFS(tblPontuaçõesDeAula[Classificação],tblPontuaçõesDeAula[Aula],Cálculos!$C25,tblPontuaçõesDeAula[Tipo],Cálculos!AF$5)*Definições!H28,\"\")","v":""},{"$f":"IFERROR(AVERAGEIFS(tblPontuaçõesDeAula[Classificação],tblPontuaçõesDeAula[Aula],Cálculos!$C25,tblPontuaçõesDeAula[Tipo],Cálculos!AG$5)*Definições!I28,\"\")","v":""},{"$f":"IFERROR(AVERAGEIFS(tblPontuaçõesDeAula[Classificação],tblPontuaçõesDeAula[Aula],Cálculos!$C25,tblPontuaçõesDeAula[Tipo],Cálculos!AH$5)*Definições!J28,\"\")","v":""},{"$f":"IFERROR(AVERAGEIFS(tblPontuaçõesDeAula[Classificação],tblPontuaçõesDeAula[Aula],Cálculos!$C25,tblPontuaçõesDeAula[Tipo],Cálculos!AI$5)*Definições!K28,\"\")","v":""},0,{"$f":"SUMIFS(Definições!E28:K28,Cálculos!AC25:AI25,\">0\")","v":0},"","",""]
[null,null,{"$f":"IF(Definições!C29=\"\",\"\",Definições!C29)","v":""},"","","","","","","","","","","","","","","","","","","","","","","","","",{"$f":"IFERROR(AVERAGEIFS(tblPontuaçõesDeAula[Classificação],tblPontuaçõesDeAula[Aula],Cálculos!$C26,tblPontuaçõesDeAula[Tipo],Cálculos!AC$5)*Definições!E29,\"\")","v":""},{"$f":"IFERROR(AVERAGEIFS(tblPontuaçõesDeAula[Classificação],tblPontuaçõesDeAula[Aula],Cálculos!$C26,tblPontuaçõesDeAula[Tipo],Cálculos!AD$5)*Definições!F29,\"\")","v":""},{"$f":"IFERROR(AVERAGEIFS(tblPontuaçõesDeAula[Classificação],tblPontuaçõesDeAula[Aula],Cálculos!$C26,tblPontuaçõesDeAula[Tipo],Cálculos!AE$5)*Definições!G29,\"\")","v":""},{"$f":"IFERROR(AVERAGEIFS(tblPontuaçõesDeAula[Classificação],tblPontuaçõesDeAula[Aula],Cálculos!$C26,tblPontuaçõesDeAula[Tipo],Cálculos!AF$5)*Definições!H29,\"\")","v":""},{"$f":"IFERROR(AVERAGEIFS(tblPontuaçõesDeAula[Classificação],tblPontuaçõesDeAula[Aula],Cálculos!$C26,tblPontuaçõesDeAula[Tipo],Cálculos!AG$5)*Definições!I29,\"\")","v":""},{"$f":"IFERROR(AVERAGEIFS(tblPontuaçõesDeAula[Classificação],tblPontuaçõesDeAula[Aula],Cálculos!$C26,tblPontuaçõesDeAula[Tipo],Cálculos!AH$5)*Definições!J29,\"\")","v":""},{"$f":"IFERROR(AVERAGEIFS(tblPontuaçõesDeAula[Classificação],tblPontuaçõesDeAula[Aula],Cálculos!$C26,tblPontuaçõesDeAula[Tipo],Cálculos!AI$5)*Definições!K29,\"\")","v":""},0,{"$f":"SUMIFS(Definições!E29:K29,Cálculos!AC26:AI26,\">0\")","v":0},"","",""]
[null,null,{"$f":"IF(Definições!C30=\"\",\"\",Definições!C30)","v":""},"","","","","","","","","","","","","","","","","","","","","","","","","",{"$f":"IFERROR(AVERAGEIFS(tblPontuaçõesDeAula[Classificação],tblPontuaçõesDeAula[Aula],Cálculos!$C27,tblPontuaçõesDeAula[Tipo],Cálculos!AC$5)*Definições!E30,\"\")","v":""},{"$f":"IFERROR(AVERAGEIFS(tblPontuaçõesDeAula[Classificação],tblPontuaçõesDeAula[Aula],Cálculos!$C27,tblPontuaçõesDeAula[Tipo],Cálculos!AD$5)*Definições!F30,\"\")","v":""},{"$f":"IFERROR(AVERAGEIFS(tblPontuaçõesDeAula[Classificação],tblPontuaçõesDeAula[Aula],Cálculos!$C27,tblPontuaçõesDeAula[Tipo],Cálculos!AE$5)*Definições!G30,\"\")","v":""},{"$f":"IFERROR(AVERAGEIFS(tblPontuaçõesDeAula[Classificação],tblPontuaçõesDeAula[Aula],Cálculos!$C27,tblPontuaçõesDeAula[Tipo],Cálculos!AF$5)*Definições!H30,\"\")","v":""},{"$f":"IFERROR(AVERAGEIFS(tblPontuaçõesDeAula[Classificação],tblPontuaçõesDeAula[Aula],Cálculos!$C27,tblPontuaçõesDeAula[Tipo],Cálculos!AG$5)*Definições!I30,\"\")","v":""},{"$f":"IFERROR(AVERAGEIFS(tblPontuaçõesDeAula[Classificação],tblPontuaçõesDeAula[Aula],Cálculos!$C27,tblPontuaçõesDeAula[Tipo],Cálculos!AH$5)*Definições!J30,\"\")","v":""},{"$f":"IFERROR(AVERAGEIFS(tblPontuaçõesDeAula[Classificação],tblPontuaçõesDeAula[Aula],Cálculos!$C27,tblPontuaçõesDeAula[Tipo],Cálculos!AI$5)*Definições!K30,\"\")","v":""},0,{"$f":"SUMIFS(Definições!E30:K30,Cálculos!AC27:AI27,\">0\")","v":0},"","",""]
[null,null,{"$f":"IF(Definições!C31=\"\",\"\",Definições!C31)","v":""},"","","","","","","","","","","","","","","","","","","","","","","","","",{"$f":"IFERROR(AVERAGEIFS(tblPontuaçõesDeAula[Classificação],tblPontuaçõesDeAula[Aula],Cálculos!$C28,tblPontuaçõesDeAula[Tipo],Cálculos!AC$5)*Definições!E31,\"\")","v":""},{"$f":"IFERROR(AVERAGEIFS(tblPontuaçõesDeAula[Classificação],tblPontuaçõesDeAula[Aula],Cálculos!$C28,tblPontuaçõesDeAula[Tipo],Cálculos!AD$5)*Definições!F31,\"\")","v":""},{"$f":"IFERROR(AVERAGEIFS(tblPontuaçõesDeAula[Classificação],tblPontuaçõesDeAula[Aula],Cálculos!$C28,tblPontuaçõesDeAula[Tipo],Cálculos!AE$5)*Definições!G31,\"\")","v":""},{"$f":"IFERROR(AVERAGEIFS(tblPontuaçõesDeAula[Classificação],tblPontuaçõesDeAula[Aula],Cálculos!$C28,tblPontuaçõesDeAula[Tipo],Cálculos!AF$5)*Definições!H31,\"\")","v":""},{"$f":"IFERROR(AVERAGEIFS(tblPontuaçõesDeAula[Classificação],tblPontuaçõesDeAula[Aula],Cálculos!$C28,tblPontuaçõesDeAula[Tipo],Cálculos!AG$5)*Definições!I31,\"\")","v":""},{"$f":"IFERROR(AVERAGEIFS(tblPontuaçõesDeAula[Classificação],tblPontuaçõesDeAula[Aula],Cálculos!$C28,tblPontuaçõesDeAula[Tipo],Cálculos!AH$5)*Definições!J31,\"\")","v":""},{"$f":"IFERROR(AVERAGEIFS(tblPontuaçõesDeAula[Classificação],tblPontuaçõesDeAula[Aula],Cálculos!$C28,tblPontuaçõesDeAula[Tipo],Cálculos!AI$5)*Definições!K31,\"\")","v":""},0,{"$f":"SUMIFS(Definições!E31:K31,Cálculos!AC28:AI28,\">0\")","v":0},"","",""]
[null,null,{"$f":"IF(Definições!C32=\"\",\"\",Definições!C32)","v":""},"","","","","","","","","","","","","","","","","","","","","","","","","",{"$f":"IFERROR(AVERAGEIFS(tblPontuaçõesDeAula[Classificação],tblPontuaçõesDeAula[Aula],Cálculos!$C29,tblPontuaçõesDeAula[Tipo],Cálculos!AC$5)*Definições!E32,\"\")","v":""},{"$f":"IFERROR(AVERAGEIFS(tblPontuaçõesDeAula[Classificação],tblPontuaçõesDeAula[Aula],Cálculos!$C29,tblPontuaçõesDeAula[Tipo],Cálculos!AD$5)*Definições!F32,\"\")","v":""},{"$f":"IFERROR(AVERAGEIFS(tblPontuaçõesDeAula[Classificação],tblPontuaçõesDeAula[Aula],Cálculos!$C29,tblPontuaçõesDeAula[Tipo],Cálculos!AE$5)*Definições!G32,\"\")","v":""},{"$f":"IFERROR(AVERAGEIFS(tblPontuaçõesDeAula[Classificação],tblPontuaçõesDeAula[Aula],Cálculos!$C29,tblPontuaçõesDeAula[Tipo],Cálculos!AF$5)*Definições!H32,\"\")","v":""},{"$f":"IFERROR(AVERAGEIFS(tblPontuaçõesDeAula[Classificação],tblPontuaçõesDeAula[Aula],Cálculos!$C29,tblPontuaçõesDeAula[Tipo],Cálculos!AG$5)*Definições!I32,\"\")","v":""},{"$f":"IFERROR(AVERAGEIFS(tblPontuaçõesDeAula[Classificação],tblPontuaçõesDeAula[Aula],Cálculos!$C29,tblPontuaçõesDeAula[Tipo],Cálculos!AH$5)*Definições!J32,\"\")","v":""},{"$f":"IFERROR(AVERAGEIFS(tblPontuaçõesDeAula[Classificação],tblPontuaçõesDeAula[Aula],Cálculos!$C29,tblPontuaçõesDeAula[Tipo],Cálculos!AI$5)*Definições!K32,\"\")","v":""},0,{"$f":"SUMIFS(Definições!E32:K32,Cálculos!AC29:AI29,\">0\")","v":0},"","",""]
[null,null,{"$f":"IF(Definições!C33=\"\",\"\",Definições!C33)","v":""},"","","","","","","","","","","","","","","","","","","","","","","","","",{"$f":"IFERROR(AVERAGEIFS(tblPontuaçõesDeAula[Classificação],tblPontuaçõesDeAula[Aula],Cálculos!$C30,tblPontuaçõesDeAula[Tipo],Cálculos!AC$5)*Definições!E33,\"\")","v":""},{"$f":"IFERROR(AVERAGEIFS(tblPontuaçõesDeAula[Classificação],tblPontuaçõesDeAula[Aula],Cálculos!$C30,tblPontuaçõesDeAula[Tipo],Cálculos!AD$5)*Definições!F33,\"\")","v":""},{"$f":"IFERROR(AVERAGEIFS(tblPontuaçõesDeAula[Classificação],tblPontuaçõesDeAula[Aula],Cálculos!$C30,tblPontuaçõesDeAula[Tipo],Cálculos!AE$5)*Definições!G33,\"\")","v":""},{"$f":"IFERROR(AVERAGEIFS(tblPontuaçõesDeAula[Classificação],tblPontuaçõesDeAula[Aula],Cálculos!$C30,tblPontuaçõesDeAula[Tipo],Cálculos!AF$5)*Definições!H33,\"\")","v":""},{"$f":"IFERROR(AVERAGEIFS(tblPontuaçõesDeAula[Classificação],tblPontuaçõesDeAula[Aula],Cálculos!$C30,tblPontuaçõesDeAula[Tipo],Cálculos!AG$5)*Definições!I33,\"\")","v":""},{"$f":"IFERROR(AVERAGEIFS(tblPontuaçõesDeAula[Classificação],tblPontuaçõesDeAula[Aula],Cálculos!$C30,tblPontuaçõesDeAula[Tipo],Cálculos!AH$5)*Definições!J33,\"\")","v":""},{"$f":"IFERROR(AVERAGEIFS(tblPontuaçõesDeAula[Classificação],tblPontuaçõesDeAula[Aula],Cálculos!$C30,tblPontuaçõesDeAula[Tipo],Cálculos!AI$5)*Definições!K33,\"\")","v":""},0,{"$f":"SUMIFS(Definições!E33:K33,Cálculos!AC30:AI30,\">0\")","v":0},"","",""]
[]
[]
[null,1,{"$f":"'Folha de Pontuações'!C4&COUNTIF('Folha de Pontuações'!$C$4:C4,'Folha de Pontuações'!C4)","v":"Francês Moderno1"}]
[null,2,{"$f":"'Folha de Pontuações'!C5&COUNTIF('Folha de Pontuações'!$C$4:C5,'Folha de Pontuações'!C5)","v":"Programação Avançada em Java1"}]
[null,3,{"$f":"'Folha de Pontuações'!C6&COUNTIF('Folha de Pontuações'!$C$4:C6,'Folha de Pontuações'!C6)","v":"Espanhol1"}]
[null,4,{"$f":"'Folha de Pontuações'!C7&COUNTIF('Folha de Pontuações'!$C$4:C7,'Folha de Pontuações'!C7)","v":"Física1"}]
[null,5,{"$f":"'Folha de Pontuações'!C8&COUNTIF('Folha de Pontuações'!$C$4:C8,'Folha de Pontuações'!C8)","v":"Francês Moderno2"}]
[null,6,{"$f":"'Folha de Pontuações'!C9&COUNTIF('Folha de Pontuações'!$C$4:C9,'Folha de Pontuações'!C9)","v":"Francês Moderno3"}]
[null,7,{"$f":"'Folha de Pontuações'!C10&COUNTIF('Folha de Pontuações'!$C$4:C10,'Folha de Pontuações'!C10)","v":"Composição1"}]
[null,8,{"$f":"'Folha de Pontuações'!C11&COUNTIF('Folha de Pontuações'!$C$4:C11,'Folha de Pontuações'!C11)","v":"Matemática 11"}]
[null,9,{"$f":"'Folha de Pontuações'!C12&COUNTIF('Folha de Pontuações'!$C$4:C12,'Folha de Pontuações'!C12)","v":"Matemática 21"}]
[null,10,{"$f":"'Folha de Pontuações'!C13&COUNTIF('Folha de Pontuações'!$C$4:C14,'Folha de Pontuações'!C13)","v":"Matemática 12"}]
[null,11,{"$f":"'Folha de Pontuações'!C14&COUNTIF('Folha de Pontuações'!$C$4:C14,'Folha de Pontuações'!C14)","v":"Matemática 22"}]
[null,12,{"$f":"'Folha de Pontuações'!C15&COUNTIF('Folha de Pontuações'!$C$4:C15,'Folha de Pontuações'!C15)","v":"0"}]
[null,13,{"$f":"'Folha de Pontuações'!C16&COUNTIF('Folha de Pontuações'!$C$4:C16,'Folha de Pontuações'!C16)","v":"0"}]
[null,14,{"$f":"'Folha de Pontuações'!C17&COUNTIF('Folha de Pontuações'!$C$4:C17,'Folha de Pontuações'!C17)","v":"0"}]
[null,15,{"$f":"'Folha de Pontuações'!C18&COUNTIF('Folha de Pontuações'!$C$4:C18,'Folha de Pontuações'!C18)","v":"0"}]
[null,16,{"$f":"'Folha de Pontuações'!C19&COUNTIF('Folha de Pontuações'!$C$4:C19,'Folha de Pontuações'!C19)","v":"0"}]
[null,17,{"$f":"'Folha de Pontuações'!C20&COUNTIF('Folha de Pontuações'!$C$4:C20,'Folha de Pontuações'!C20)","v":"0"}]
[null,18,{"$f":"'Folha de Pontuações'!C21&COUNTIF('Folha de Pontuações'!$C$4:C21,'Folha de Pontuações'!C21)","v":"0"}]
[null,19,{"$f":"'Folha de Pontuações'!C22&COUNTIF('Folha de Pontuações'!$C$4:C22,'Folha de Pontuações'!C22)","v":"0"}]
[null,20,{"$f":"'Folha de Pontuações'!C23&COUNTIF('Folha de Pontuações'!$C$4:C23,'Folha de Pontuações'!C23)","v":"0"}]
[null,21,{"$f":"'Folha de Pontuações'!C24&COUNTIF('Folha de Pontuações'!$C$4:C24,'Folha de Pontuações'!C24)","v":"0"}]
[null,22,{"$f":"'Folha de Pontuações'!C25&COUNTIF('Folha de Pontuações'!$C$4:C25,'Folha de Pontuações'!C25)","v":"0"}]
[null,23,{"$f":"'Folha de Pontuações'!C26&COUNTIF('Folha de Pontuações'!$C$4:C26,'Folha de Pontuações'!C26)","v":"0"}]
[null,24,{"$f":"'Folha de Pontuações'!C27&COUNTIF('Folha de Pontuações'!$C$4:C27,'Folha de Pontuações'!C27)","v":"0"}]
[null,25,{"$f":"'Folha de Pontuações'!C28&COUNTIF('Folha de Pontuações'!$C$4:C28,'Folha de Pontuações'!C28)","v":"0"}]
[null,26,{"$f":"'Folha de Pontuações'!C29&COUNTIF('Folha de Pontuações'!$C$4:C29,'Folha de Pontuações'!C29)","v":"0"}]
[null,27,{"$f":"'Folha de Pontuações'!C30&COUNTIF('Folha de Pontuações'!$C$4:C30,'Folha de Pontuações'!C30)","v":"0"}]
[null,28,{"$f":"'Folha de Pontuações'!C31&COUNTIF('Folha de Pontuações'!$C$4:C31,'Folha de Pontuações'!C31)","v":"0"}]
[null,29,{"$f":"'Folha de Pontuações'!C32&COUNTIF('Folha de Pontuações'!$C$4:C32,'Folha de Pontuações'!C32)","v":"0"}]
[null,30,{"$f":"'Folha de Pontuações'!C33&COUNTIF('Folha de Pontuações'!$C$4:C33,'Folha de Pontuações'!C33)","v":"0"}]
[null,31,{"$f":"'Folha de Pontuações'!C34&COUNTIF('Folha de Pontuações'!$C$4:C34,'Folha de Pontuações'!C34)","v":"0"}]
[null,32,{"$f":"'Folha de Pontuações'!C35&COUNTIF('Folha de Pontuações'!$C$4:C35,'Folha de Pontuações'!C35)","v":"0"}]
[null,33,{"$f":"'Folha de Pontuações'!C36&COUNTIF('Folha de Pontuações'!$C$4:C36,'Folha de Pontuações'!C36)","v":"0"}]
[null,34,{"$f":"'Folha de Pontuações'!C37&COUNTIF('Folha de Pontuações'!$C$4:C37,'Folha de Pontuações'!C37)","v":"0"}]
[null,35,{"$f":"'Folha de Pontuações'!C38&COUNTIF('Folha de Pontuações'!$C$4:C38,'Folha de Pontuações'!C38)","v":"0"}]
[null,36,{"$f":"'Folha de Pontuações'!C39&COUNTIF('Folha de Pontuações'!$C$4:C39,'Folha de Pontuações'!C39)","v":"0"}]
[null,37,{"$f":"'Folha de Pontuações'!C40&COUNTIF('Folha de Pontuações'!$C$4:C40,'Folha de Pontuações'!C40)","v":"0"}]
[null,38,{"$f":"'Folha de Pontuações'!C41&COUNTIF('Folha de Pontuações'!$C$4:C41,'Folha de Pontuações'!C41)","v":"0"}]
[null,39,{"$f":"'Folha de Pontuações'!C42&COUNTIF('Folha de Pontuações'!$C$4:C42,'Folha de Pontuações'!C42)","v":"0"}]
[null,40,{"$f":"'Folha de Pontuações'!C43&COUNTIF('Folha de Pontuações'!$C$4:C43,'Folha de Pontuações'!C43)","v":"0"}]
[null,41,{"$f":"'Folha de Pontuações'!C44&COUNTIF('Folha de Pontuações'!$C$4:C44,'Folha de Pontuações'!C44)","v":"0"}]
[null,42,{"$f":"'Folha de Pontuações'!C45&COUNTIF('Folha de Pontuações'!$C$4:C45,'Folha de Pontuações'!C45)","v":"0"}]
[null,43,{"$f":"'Folha de Pontuações'!C46&COUNTIF('Folha de Pontuações'!$C$4:C46,'Folha de Pontuações'!C46)","v":"0"}]
[null,44,{"$f":"'Folha de Pontuações'!C47&COUNTIF('Folha de Pontuações'!$C$4:C47,'Folha de Pontuações'!C47)","v":"0"}]
[null,45,{"$f":"'Folha de Pontuações'!C48&COUNTIF('Folha de Pontuações'!$C$4:C48,'Folha de Pontuações'!C48)","v":"0"}]
[null,46,{"$f":"'Folha de Pontuações'!C49&COUNTIF('Folha de Pontuações'!$C$4:C49,'Folha de Pontuações'!C49)","v":"0"}]
[null,47,{"$f":"'Folha de Pontuações'!C50&COUNTIF('Folha de Pontuações'!$C$4:C50,'Folha de Pontuações'!C50)","v":"0"}]
[null,48,{"$f":"'Folha de Pontuações'!C51&COUNTIF('Folha de Pontuações'!$C$4:C51,'Folha de Pontuações'!C51)","v":"0"}]
[null,49,{"$f":"'Folha de Pontuações'!C52&COUNTIF('Folha de Pontuações'!$C$4:C52,'Folha de Pontuações'!C52)","v":"0"}]
[null,50,{"$f":"'Folha de Pontuações'!C53&COUNTIF('Folha de Pontuações'!$C$4:C53,'Folha de Pontuações'!C53)","v":"0"}]
[null,51,{"$f":"'Folha de Pontuações'!C54&COUNTIF('Folha de Pontuações'!$C$4:C54,'Folha de Pontuações'!C54)","v":"0"}]
[null,52,{"$f":"'Folha de Pontuações'!C55&COUNTIF('Folha de Pontuações'!$C$4:C55,'Folha de Pontuações'!C55)","v":"0"}]
[null,53,{"$f":"'Folha de Pontuações'!C56&COUNTIF('Folha de Pontuações'!$C$4:C56,'Folha de Pontuações'!C56)","v":"0"}]
[null,54,{"$f":"'Folha de Pontuações'!C57&COUNTIF('Folha de Pontuações'!$C$4:C57,'Folha de Pontuações'!C57)","v":"0"}]
[null,55,{"$f":"'Folha de Pontuações'!C58&COUNTIF('Folha de Pontuações'!$C$4:C58,'Folha de Pontuações'!C58)","v":"0"}]
[null,56,{"$f":"'Folha de Pontuações'!C59&COUNTIF('Folha de Pontuações'!$C$4:C59,'Folha de Pontuações'!C59)","v":"0"}]
[null,57,{"$f":"'Folha de Pontuações'!C60&COUNTIF('Folha de Pontuações'!$C$4:C60,'Folha de Pontuações'!C60)","v":"0"}]
[null,58,{"$f":"'Folha de Pontuações'!C61&COUNTIF('Folha de Pontuações'!$C$4:C61,'Folha de Pontuações'!C61)","v":"0"}]
[null,59,{"$f":"'Folha de Pontuações'!C62&COUNTIF('Folha de Pontuações'!$C$4:C62,'Folha de Pontuações'!C62)","v":"0"}]
[null,60,{"$f":"'Folha de Pontuações'!C63&COUNTIF('Folha de Pontuações'!$C$4:C63,'Folha de Pontuações'!C63)","v":"0"}]
[null,61,{"$f":"'Folha de Pontuações'!C64&COUNTIF('Folha de Pontuações'!$C$4:C64,'Folha de Pontuações'!C64)","v":"0"}]
[null,62,{"$f":"'Folha de Pontuações'!C65&COUNTIF('Folha de Pontuações'!$C$4:C65,'Folha de Pontuações'!C65)","v":"0"}]
[null,63,{"$f":"'Folha de Pontuações'!C66&COUNTIF('Folha de Pontuações'!$C$4:C66,'Folha de Pontuações'!C66)","v":"0"}]
[null,64,{"$f":"'Folha de Pontuações'!C67&COUNTIF('Folha de Pontuações'!$C$4:C67,'Folha de Pontuações'!C67)","v":"0"}]
[null,65,{"$f":"'Folha de Pontuações'!C68&COUNTIF('Folha de Pontuações'!$C$4:C68,'Folha de Pontuações'!C68)","v":"0"}]
[null,66,{"$f":"'Folha de Pontuações'!C69&COUNTIF('Folha de Pontuações'!$C$4:C69,'Folha de Pontuações'!C69)","v":"0"}]
[null,67,{"$f":"'Folha de Pontuações'!C70&COUNTIF('Folha de Pontuações'!$C$4:C70,'Folha de Pontuações'!C70)","v":"0"}]
[null,68,{"$f":"'Folha de Pontuações'!C71&COUNTIF('Folha de Pontuações'!$C$4:C71,'Folha de Pontuações'!C71)","v":"0"}]
[null,69,{"$f":"'Folha de Pontuações'!C72&COUNTIF('Folha de Pontuações'!$C$4:C72,'Folha de Pontuações'!C72)","v":"0"}]
[null,70,{"$f":"'Folha de Pontuações'!C73&COUNTIF('Folha de Pontuações'!$C$4:C73,'Folha de Pontuações'!C73)","v":"0"}]
[null,71,{"$f":"'Folha de Pontuações'!C74&COUNTIF('Folha de Pontuações'!$C$4:C74,'Folha de Pontuações'!C74)","v":"0"}]
[null,72,{"$f":"'Folha de Pontuações'!C75&COUNTIF('Folha de Pontuações'!$C$4:C75,'Folha de Pontuações'!C75)","v":"0"}]
[null,73,{"$f":"'Folha de Pontuações'!C76&COUNTIF('Folha de Pontuações'!$C$4:C76,'Folha de Pontuações'!C76)","v":"0"}]
[null,74,{"$f":"'Folha de Pontuações'!C77&COUNTIF('Folha de Pontuações'!$C$4:C77,'Folha de Pontuações'!C77)","v":"0"}]
[null,75,{"$f":"'Folha de Pontuações'!C78&COUNTIF('Folha de Pontuações'!$C$4:C78,'Folha de Pontuações'!C78)","v":"0"}]
[null,76,{"$f":"'Folha de Pontuações'!C79&COUNTIF('Folha de Pontuações'!$C$4:C79,'Folha de Pontuações'!C79)","v":"0"}]
[null,77,{"$f":"'Folha de Pontuações'!C80&COUNTIF('Folha de Pontuações'!$C$4:C80,'Folha de Pontuações'!C80)","v":"0"}]
[null,78,{"$f":"'Folha de Pontuações'!C81&COUNTIF('Folha de Pontuações'!$C$4:C81,'Folha de Pontuações'!C81)","v":"0"}]
[null,79,{"$f":"'Folha de Pontuações'!C82&COUNTIF('Folha de Pontuações'!$C$4:C82,'Folha de Pontuações'!C82)","v":"0"}]
[null,80,{"$f":"'Folha de Pontuações'!C83&COUNTIF('Folha de Pontuações'!$C$4:C83,'Folha de Pontuações'!C83)","v":"0"}]
[null,81,{"$f":"'Folha de Pontuações'!C84&COUNTIF('Folha de Pontuações'!$C$4:C84,'Folha de Pontuações'!C84)","v":"0"}]
[null,82,{"$f":"'Folha de Pontuações'!C85&COUNTIF('Folha de Pontuações'!$C$4:C85,'Folha de Pontuações'!C85)","v":"0"}]
[null,83,{"$f":"'Folha de Pontuações'!C86&COUNTIF('Folha de Pontuações'!$C$4:C86,'Folha de Pontuações'!C86)","v":"0"}]
[null,84,{"$f":"'Folha de Pontuações'!C87&COUNTIF('Folha de Pontuações'!$C$4:C87,'Folha de Pontuações'!C87)","v":"0"}]
[null,85,{"$f":"'Folha de Pontuações'!C88&COUNTIF('Folha de Pontuações'!$C$4:C88,'Folha de Pontuações'!C88)","v":"0"}]
[null,86,{"$f":"'Folha de Pontuações'!C89&COUNTIF('Folha de Pontuações'!$C$4:C89,'Folha de Pontuações'!C89)","v":"0"}]
[null,87,{"$f":"'Folha de Pontuações'!C90&COUNTIF('Folha de Pontuações'!$C$4:C90,'Folha de Pontuações'!C90)","v":"0"}]
[null,88,{"$f":"'Folha de Pontuações'!C91&COUNTIF('Folha de Pontuações'!$C$4:C91,'Folha de Pontuações'!C91)","v":"0"}]
[null,89,{"$f":"'Folha de Pontuações'!C92&COUNTIF('Folha de Pontuações'!$C$4:C92,'Folha de Pontuações'!C92)","v":"0"}]
[null,90,{"$f":"'Folha de Pontuações'!C93&COUNTIF('Folha de Pontuações'!$C$4:C93,'Folha de Pontuações'!C93)","v":"0"}]
[null,91,{"$f":"'Folha de Pontuações'!C94&COUNTIF('Folha de Pontuações'!$C$4:C94,'Folha de Pontuações'!C94)","v":"0"}]
[null,92,{"$f":"'Folha de Pontuações'!C95&COUNTIF('Folha de Pontuações'!$C$4:C95,'Folha de Pontuações'!C95)","v":"0"}]
[null,93,{"$f":"'Folha de Pontuações'!C96&COUNTIF('Folha de Pontuações'!$C$4:C96,'Folha de Pontuações'!C96)","v":"0"}]
[null,94,{"$f":"'Folha de Pontuações'!C97&COUNTIF('Folha de Pontuações'!$C$4:C97,'Folha de Pontuações'!C97)","v":"0"}]
[null,95,{"$f":"'Folha de Pontuações'!C98&COUNTIF('Folha de Pontuações'!$C$4:C98,'Folha de Pontuações'!C98)","v":"0"}]
[null,96,{"$f":"'Folha de Pontuações'!C99&COUNTIF('Folha de Pontuações'!$C$4:C99,'Folha de Pontuações'!C99)","v":"0"}]
[null,97,{"$f":"'Folha de Pontuações'!C100&COUNTIF('Folha de Pontuações'!$C$4:C100,'Folha de Pontuações'!C100)","v":"0"}]
[null,98,{"$f":"'Folha de Pontuações'!C101&COUNTIF('Folha de Pontuações'!$C$4:C101,'Folha de Pontuações'!C101)","v":"0"}]
[null,99,{"$f":"'Folha de Pontuações'!C102&COUNTIF('Folha de Pontuações'!$C$4:C102,'Folha de Pontuações'!C102)","v":"0"}]
[null,100,{"$f":"'Folha de Pontuações'!C103&COUNTIF('Folha de Pontuações'!$C$4:C103,'Folha de Pontuações'!C103)","v":"0"}]
[null,101,{"$f":"'Folha de Pontuações'!C104&COUNTIF('Folha de Pontuações'!$C$4:C104,'Folha de Pontuações'!C104)","v":"0"}]
[null,102,{"$f":"'Folha de Pontuações'!C105&COUNTIF('Folha de Pontuações'!$C$4:C105,'Folha de Pontuações'!C105)","v":"0"}]
[null,103,{"$f":"'Folha de Pontuações'!C106&COUNTIF('Folha de Pontuações'!$C$4:C106,'Folha de Pontuações'!C106)","v":"0"}]
[null,104,{"$f":"'Folha de Pontuações'!C107&COUNTIF('Folha de Pontuações'!$C$4:C107,'Folha de Pontuações'!C107)","v":"0"}]
[null,105,{"$f":"'Folha de Pontuações'!C108&COUNTIF('Folha de Pontuações'!$C$4:C108,'Folha de Pontuações'!C108)","v":"0"}]
[null,106,{"$f":"'Folha de Pontuações'!C109&COUNTIF('Folha de Pontuações'!$C$4:C109,'Folha de Pontuações'!C109)","v":"0"}]
[null,107,{"$f":"'Folha de Pontuações'!C110&COUNTIF('Folha de Pontuações'!$C$4:C110,'Folha de Pontuações'!C110)","v":"0"}]
[null,108,{"$f":"'Folha de Pontuações'!C111&COUNTIF('Folha de Pontuações'!$C$4:C111,'Folha de Pontuações'!C111)","v":"0"}]
[null,109,{"$f":"'Folha de Pontuações'!C112&COUNTIF('Folha de Pontuações'!$C$4:C112,'Folha de Pontuações'!C112)","v":"0"}]
[null,110,{"$f":"'Folha de Pontuações'!C113&COUNTIF('Folha de Pontuações'!$C$4:C113,'Folha de Pontuações'!C113)","v":"0"}]
[null,111,{"$f":"'Folha de Pontuações'!C114&COUNTIF('Folha de Pontuações'!$C$4:C114,'Folha de Pontuações'!C114)","v":"0"}]
[null,112,{"$f":"'Folha de Pontuações'!C115&COUNTIF('Folha de Pontuações'!$C$4:C115,'Folha de Pontuações'!C115)","v":"0"}]
[null,113,{"$f":"'Folha de Pontuações'!C116&COUNTIF('Folha de Pontuações'!$C$4:C116,'Folha de Pontuações'!C116)","v":"0"}]
[null,114,{"$f":"'Folha de Pontuações'!C117&COUNTIF('Folha de Pontuações'!$C$4:C117,'Folha de Pontuações'!C117)","v":"0"}]
[null,115,{"$f":"'Folha de Pontuações'!C118&COUNTIF('Folha de Pontuações'!$C$4:C118,'Folha de Pontuações'!C118)","v":"0"}]
[null,116,{"$f":"'Folha de Pontuações'!C119&COUNTIF('Folha de Pontuações'!$C$4:C119,'Folha de Pontuações'!C119)","v":"0"}]
[null,117,{"$f":"'Folha de Pontuações'!C120&COUNTIF('Folha de Pontuações'!$C$4:C120,'Folha de Pontuações'!C120)","v":"0"}]
[null,118,{"$f":"'Folha de Pontuações'!C121&COUNTIF('Folha de Pontuações'!$C$4:C121,'Folha de Pontuações'!C121)","v":"0"}]
[null,119,{"$f":"'Folha de Pontuações'!C122&COUNTIF('Folha de Pontuações'!$C$4:C122,'Folha de Pontuações'!C122)","v":"0"}]
[null,120,{"$f":"'Folha de Pontuações'!C123&COUNTIF('Folha de Pontuações'!$C$4:C123,'Folha de Pontuações'!C123)","v":"0"}]
[null,121,{"$f":"'Folha de Pontuações'!C124&COUNTIF('Folha de Pontuações'!$C$4:C124,'Folha de Pontuações'!C124)","v":"0"}]
[null,122,{"$f":"'Folha de Pontuações'!C125&COUNTIF('Folha de Pontuações'!$C$4:C125,'Folha de Pontuações'!C125)","v":"0"}]
[null,123,{"$f":"'Folha de Pontuações'!C126&COUNTIF('Folha de Pontuações'!$C$4:C126,'Folha de Pontuações'!C126)","v":"0"}]
[null,124,{"$f":"'Folha de Pontuações'!C127&COUNTIF('Folha de Pontuações'!$C$4:C127,'Folha de Pontuações'!C127)","v":"0"}]
[null,125,{"$f":"'Folha de Pontuações'!C128&COUNTIF('Folha de Pontuações'!$C$4:C128,'Folha de Pontuações'!C128)","v":"0"}]
[null,126,{"$f":"'Folha de Pontuações'!C129&COUNTIF('Folha de Pontuações'!$C$4:C129,'Folha de Pontuações'!C129)","v":"0"}]
[null,127,{"$f":"'Folha de Pontuações'!C130&COUNTIF('Folha de Pontuações'!$C$4:C130,'Folha de Pontuações'!C130)","v":"0"}]
[null,128,{"$f":"'Folha de Pontuações'!C131&COUNTIF('Folha de Pontuações'!$C$4:C131,'Folha de Pontuações'!C131)","v":"0"}]
[null,129,{"$f":"'Folha de Pontuações'!C132&COUNTIF('Folha de Pontuações'!$C$4:C132,'Folha de Pontuações'!C132)","v":"0"}]
[null,130,{"$f":"'Folha de Pontuações'!C133&COUNTIF('Folha de Pontuações'!$C$4:C133,'Folha de Pontuações'!C133)","v":"0"}]
[null,131,{"$f":"'Folha de Pontuações'!C134&COUNTIF('Folha de Pontuações'!$C$4:C134,'Folha de Pontuações'!C134)","v":"0"}]
[null,132,{"$f":"'Folha de Pontuações'!C135&COUNTIF('Folha de Pontuações'!$C$4:C135,'Folha de Pontuações'!C135)","v":"0"}]
[null,133,{"$f":"'Folha de Pontuações'!C136&COUNTIF('Folha de Pontuações'!$C$4:C136,'Folha de Pontuações'!C136)","v":"0"}]
[null,134,{"$f":"'Folha de Pontuações'!C137&COUNTIF('Folha de Pontuações'!$C$4:C137,'Folha de Pontuações'!C137)","v":"0"}]
[null,135,{"$f":"'Folha de Pontuações'!C138&COUNTIF('Folha de Pontuações'!$C$4:C138,'Folha de Pontuações'!C138)","v":"0"}]
[null,136,{"$f":"'Folha de Pontuações'!C139&COUNTIF('Folha de Pontuações'!$C$4:C139,'Folha de Pontuações'!C139)","v":"0"}]
[null,137,{"$f":"'Folha de Pontuações'!C140&COUNTIF('Folha de Pontuações'!$C$4:C140,'Folha de Pontuações'!C140)","v":"0"}]
[null,138,{"$f":"'Folha de Pontuações'!C141&COUNTIF('Folha de Pontuações'!$C$4:C141,'Folha de Pontuações'!C141)","v":"0"}]
[null,139,{"$f":"'Folha de Pontuações'!C142&COUNTIF('Folha de Pontuações'!$C$4:C142,'Folha de Pontuações'!C142)","v":"0"}]
[null,140,{"$f":"'Folha de Pontuações'!C143&COUNTIF('Folha de Pontuações'!$C$4:C143,'Folha de Pontuações'!C143)","v":"0"}]
[null,141,{"$f":"'Folha de Pontuações'!C144&COUNTIF('Folha de Pontuações'!$C$4:C144,'Folha de Pontuações'!C144)","v":"0"}]
[null,142,{"$f":"'Folha de Pontuações'!C145&COUNTIF('Folha de Pontuações'!$C$4:C145,'Folha de Pontuações'!C145)","v":"0"}]
[null,143,{"$f":"'Folha de Pontuações'!C146&COUNTIF('Folha de Pontuações'!$C$4:C146,'Folha de Pontuações'!C146)","v":"0"}]
[null,144,{"$f":"'Folha de Pontuações'!C147&COUNTIF('Folha de Pontuações'!$C$4:C147,'Folha de Pontuações'!C147)","v":"0"}]
[null,145,{"$f":"'Folha de Pontuações'!C148&COUNTIF('Folha de Pontuações'!$C$4:C148,'Folha de Pontuações'!C148)","v":"0"}]
[null,146,{"$f":"'Folha de Pontuações'!C149&COUNTIF('Folha de Pontuações'!$C$4:C149,'Folha de Pontuações'!C149)","v":"0"}]
[null,147,{"$f":"'Folha de Pontuações'!C150&COUNTIF('Folha de Pontuações'!$C$4:C150,'Folha de Pontuações'!C150)","v":"0"}]
[null,148,{"$f":"'Folha de Pontuações'!C151&COUNTIF('Folha de Pontuações'!$C$4:C151,'Folha de Pontuações'!C151)","v":"0"}]
[null,149,{"$f":"'Folha de Pontuações'!C152&COUNTIF('Folha de Pontuações'!$C$4:C152,'Folha de Pontuações'!C152)","v":"0"}]
[null,150,{"$f":"'Folha de Pontuações'!C153&COUNTIF('Folha de Pontuações'!$C$4:C153,'Folha de Pontuações'!C153)","v":"0"}]
[null,151,{"$f":"'Folha de Pontuações'!C154&COUNTIF('Folha de Pontuações'!$C$4:C154,'Folha de Pontuações'!C154)","v":"0"}]
[null,152,{"$f":"'Folha de Pontuações'!C155&COUNTIF('Folha de Pontuações'!$C$4:C155,'Folha de Pontuações'!C155)","v":"0"}]
[null,153,{"$f":"'Folha de Pontuações'!C156&COUNTIF('Folha de Pontuações'!$C$4:C156,'Folha de Pontuações'!C156)","v":"0"}]
[null,154,{"$f":"'Folha de Pontuações'!C157&COUNTIF('Folha de Pontuações'!$C$4:C157,'Folha de Pontuações'!C157)","v":"0"}]
[null,155,{"$f":"'Folha de Pontuações'!C158&COUNTIF('Folha de Pontuações'!$C$4:C158,'Folha de Pontuações'!C158)","v":"0"}]
[null,156,{"$f":"'Folha de Pontuações'!C159&COUNTIF('Folha de Pontuações'!$C$4:C159,'Folha de Pontuações'!C159)","v":"0"}]
[null,157,{"$f":"'Folha de Pontuações'!C160&COUNTIF('Folha de Pontuações'!$C$4:C160,'Folha de Pontuações'!C160)","v":"0"}]
[null,158,{"$f":"'Folha de Pontuações'!C161&COUNTIF('Folha de Pontuações'!$C$4:C161,'Folha de Pontuações'!C161)","v":"0"}]
[null,159,{"$f":"'Folha de Pontuações'!C162&COUNTIF('Folha de Pontuações'!$C$4:C162,'Folha de Pontuações'!C162)","v":"0"}]
[null,160,{"$f":"'Folha de Pontuações'!C163&COUNTIF('Folha de Pontuações'!$C$4:C163,'Folha de Pontuações'!C163)","v":"0"}]
[null,161,{"$f":"'Folha de Pontuações'!C164&COUNTIF('Folha de Pontuações'!$C$4:C164,'Folha de Pontuações'!C164)","v":"0"}]
[null,162,{"$f":"'Folha de Pontuações'!C165&COUNTIF('Folha de Pontuações'!$C$4:C165,'Folha de Pontuações'!C165)","v":"0"}]
[null,163,{"$f":"'Folha de Pontuações'!C166&COUNTIF('Folha de Pontuações'!$C$4:C166,'Folha de Pontuações'!C166)","v":"0"}]
[null,164,{"$f":"'Folha de Pontuações'!C167&COUNTIF('Folha de Pontuações'!$C$4:C167,'Folha de Pontuações'!C167)","v":"0"}]
[null,165,{"$f":"'Folha de Pontuações'!C168&COUNTIF('Folha de Pontuações'!$C$4:C168,'Folha de Pontuações'!C168)","v":"0"}]
[null,166,{"$f":"'Folha de Pontuações'!C169&COUNTIF('Folha de Pontuações'!$C$4:C169,'Folha de Pontuações'!C169)","v":"0"}]
[null,167,{"$f":"'Folha de Pontuações'!C170&COUNTIF('Folha de Pontuações'!$C$4:C170,'Folha de Pontuações'!C170)","v":"0"}]
[null,168,{"$f":"'Folha de Pontuações'!C171&COUNTIF('Folha de Pontuações'!$C$4:C171,'Folha de Pontuações'!C171)","v":"0"}]
[null,169,{"$f":"'Folha de Pontuações'!C172&COUNTIF('Folha de Pontuações'!$C$4:C172,'Folha de Pontuações'!C172)","v":"0"}]
[null,170,{"$f":"'Folha de Pontuações'!C173&COUNTIF('Folha de Pontuações'!$C$4:C173,'Folha de Pontuações'!C173)","v":"0"}]
[null,171,{"$f":"'Folha de Pontuações'!C174&COUNTIF('Folha de Pontuações'!$C$4:C174,'Folha de Pontuações'!C174)","v":"0"}]
[null,172,{"$f":"'Folha de Pontuações'!C175&COUNTIF('Folha de Pontuações'!$C$4:C175,'Folha de Pontuações'!C175)","v":"0"}]
[null,173,{"$f":"'Folha de Pontuações'!C176&COUNTIF('Folha de Pontuações'!$C$4:C176,'Folha de Pontuações'!C176)","v":"0"}]
[null,174,{"$f":"'Folha de Pontuações'!C177&COUNTIF('Folha de Pontuações'!$C$4:C177,'Folha de Pontuações'!C177)","v":"0"}]
[null,175,{"$f":"'Folha de Pontuações'!C178&COUNTIF('Folha de Pontuações'!$C$4:C178,'Folha de Pontuações'!C178)","v":"0"}]
[null,176,{"$f":"'Folha de Pontuações'!C179&COUNTIF('Folha de Pontuações'!$C$4:C179,'Folha de Pontuações'!C179)","v":"0"}]
[null,177,{"$f":"'Folha de Pontuações'!C180&COUNTIF('Folha de Pontuações'!$C$4:C180,'Folha de Pontuações'!C180)","v":"0"}]
[null,178,{"$f":"'Folha de Pontuações'!C181&COUNTIF('Folha de Pontuações'!$C$4:C181,'Folha de Pontuações'!C181)","v":"0"}]
[null,179,{"$f":"'Folha de Pontuações'!C182&COUNTIF('Folha de Pontuações'!$C$4:C182,'Folha de Pontuações'!C182)","v":"0"}]
[null,180,{"$f":"'Folha de Pontuações'!C183&COUNTIF('Folha de Pontuações'!$C$4:C183,'Folha de Pontuações'!C183)","v":"0"}]
[null,181,{"$f":"'Folha de Pontuações'!C184&COUNTIF('Folha de Pontuações'!$C$4:C184,'Folha de Pontuações'!C184)","v":"0"}]
[null,182,{"$f":"'Folha de Pontuações'!C185&COUNTIF('Folha de Pontuações'!$C$4:C185,'Folha de Pontuações'!C185)","v":"0"}]
[null,183,{"$f":"'Folha de Pontuações'!C186&COUNTIF('Folha de Pontuações'!$C$4:C186,'Folha de Pontuações'!C186)","v":"0"}]
[null,184,{"$f":"'Folha de Pontuações'!C187&COUNTIF('Folha de Pontuações'!$C$4:C187,'Folha de Pontuações'!C187)","v":"0"}]
[null,185,{"$f":"'Folha de Pontuações'!C188&COUNTIF('Folha de Pontuações'!$C$4:C188,'Folha de Pontuações'!C188)","v":"0"}]
[null,186,{"$f":"'Folha de Pontuações'!C189&COUNTIF('Folha de Pontuações'!$C$4:C189,'Folha de Pontuações'!C189)","v":"0"}]
[null,187,{"$f":"'Folha de Pontuações'!C190&COUNTIF('Folha de Pontuações'!$C$4:C190,'Folha de Pontuações'!C190)","v":"0"}]
[null,188,{"$f":"'Folha de Pontuações'!C191&COUNTIF('Folha de Pontuações'!$C$4:C191,'Folha de Pontuações'!C191)","v":"0"}]
[null,189,{"$f":"'Folha de Pontuações'!C192&COUNTIF('Folha de Pontuações'!$C$4:C192,'Folha de Pontuações'!C192)","v":"0"}]
[null,190,{"$f":"'Folha de Pontuações'!C193&COUNTIF('Folha de Pontuações'!$C$4:C193,'Folha de Pontuações'!C193)","v":"0"}]
[null,191,{"$f":"'Folha de Pontuações'!C194&COUNTIF('Folha de Pontuações'!$C$4:C194,'Folha de Pontuações'!C194)","v":"0"}]
[null,192,{"$f":"'Folha de Pontuações'!C195&COUNTIF('Folha de Pontuações'!$C$4:C195,'Folha de Pontuações'!C195)","v":"0"}]
[null,193,{"$f":"'Folha de Pontuações'!C196&COUNTIF('Folha de Pontuações'!$C$4:C196,'Folha de Pontuações'!C196)","v":"0"}]
[null,194,{"$f":"'Folha de Pontuações'!C197&COUNTIF('Folha de Pontuações'!$C$4:C197,'Folha de Pontuações'!C197)","v":"0"}]
[null,195,{"$f":"'Folha de Pontuações'!C198&COUNTIF('Folha de Pontuações'!$C$4:C198,'Folha de Pontuações'!C198)","v":"0"}]
[null,196,{"$f":"'Folha de Pontuações'!C199&COUNTIF('Folha de Pontuações'!$C$4:C199,'Folha de Pontuações'!C199)","v":"0"}]
[null,197,{"$f":"'Folha de Pontuações'!C200&COUNTIF('Folha de Pontuações'!$C$4:C200,'Folha de Pontuações'!C200)","v":"0"}]
[null,198,{"$f":"'Folha de Pontuações'!C201&COUNTIF('Folha de Pontuações'!$C$4:C201,'Folha de Pontuações'!C201)","v":"0"}]
[null,199,{"$f":"'Folha de Pontuações'!C202&COUNTIF('Folha de Pontuações'!$C$4:C202,'Folha de Pontuações'!C202)","v":"0"}]
[null,200,{"$f":"'Folha de Pontuações'!C203&COUNTIF('Folha de Pontuações'!$C$4:C203,'Folha de Pontuações'!C203)","v":"0"}]
[null,201,{"$f":"'Folha de Pontuações'!C204&COUNTIF('Folha de Pontuações'!$C$4:C204,'Folha de Pontuações'!C204)","v":"0"}]
[null,202,{"$f":"'Folha de Pontuações'!C205&COUNTIF('Folha de Pontuações'!$C$4:C205,'Folha de Pontuações'!C205)","v":"0"}]
[null,203,{"$f":"'Folha de Pontuações'!C206&COUNTIF('Folha de Pontuações'!$C$4:C206,'Folha de Pontuações'!C206)","v":"0"}]
[null,204,{"$f":"'Folha de Pontuações'!C207&COUNTIF('Folha de Pontuações'!$C$4:C207,'Folha de Pontuações'!C207)","v":"0"}]
[null,205,{"$f":"'Folha de Pontuações'!C208&COUNTIF('Folha de Pontuações'!$C$4:C208,'Folha de Pontuações'!C208)","v":"0"}]
[null,206,{"$f":"'Folha de Pontuações'!C209&COUNTIF('Folha de Pontuações'!$C$4:C209,'Folha de Pontuações'!C209)","v":"0"}]
[null,207,{"$f":"'Folha de Pontuações'!C210&COUNTIF('Folha de Pontuações'!$C$4:C210,'Folha de Pontuações'!C210)","v":"0"}]
[null,208,{"$f":"'Folha de Pontuações'!C211&COUNTIF('Folha de Pontuações'!$C$4:C211,'Folha de Pontuações'!C211)","v":"0"}]
[null,209,{"$f":"'Folha de Pontuações'!C212&COUNTIF('Folha de Pontuações'!$C$4:C212,'Folha de Pontuações'!C212)","v":"0"}]
[null,210,{"$f":"'Folha de Pontuações'!C213&COUNTIF('Folha de Pontuações'!$C$4:C213,'Folha de Pontuações'!C213)","v":"0"}]
[null,211,{"$f":"'Folha de Pontuações'!C214&COUNTIF('Folha de Pontuações'!$C$4:C214,'Folha de Pontuações'!C214)","v":"0"}]
[null,212,{"$f":"'Folha de Pontuações'!C215&COUNTIF('Folha de Pontuações'!$C$4:C215,'Folha de Pontuações'!C215)","v":"0"}]
[null,213,{"$f":"'Folha de Pontuações'!C216&COUNTIF('Folha de Pontuações'!$C$4:C216,'Folha de Pontuações'!C216)","v":"0"}]
[null,214,{"$f":"'Folha de Pontuações'!C217&COUNTIF('Folha de Pontuações'!$C$4:C217,'Folha de Pontuações'!C217)","v":"0"}]
[null,215,{"$f":"'Folha de Pontuações'!C218&COUNTIF('Folha de Pontuações'!$C$4:C218,'Folha de Pontuações'!C218)","v":"0"}]
[null,216,{"$f":"'Folha de Pontuações'!C219&COUNTIF('Folha de Pontuações'!$C$4:C219,'Folha de Pontuações'!C219)","v":"0"}]
[null,217,{"$f":"'Folha de Pontuações'!C220&COUNTIF('Folha de Pontuações'!$C$4:C220,'Folha de Pontuações'!C220)","v":"0"}]
[null,218,{"$f":"'Folha de Pontuações'!C221&COUNTIF('Folha de Pontuações'!$C$4:C221,'Folha de Pontuações'!C221)","v":"0"}]
[null,219,{"$f":"'Folha de Pontuações'!C222&COUNTIF('Folha de Pontuações'!$C$4:C222,'Folha de Pontuações'!C222)","v":"0"}]
[null,220,{"$f":"'Folha de Pontuações'!C223&COUNTIF('Folha de Pontuações'!$C$4:C223,'Folha de Pontuações'!C223)","v":"0"}]
[null,221,{"$f":"'Folha de Pontuações'!C224&COUNTIF('Folha de Pontuações'!$C$4:C224,'Folha de Pontuações'!C224)","v":"0"}]
[null,222,{"$f":"'Folha de Pontuações'!C225&COUNTIF('Folha de Pontuações'!$C$4:C225,'Folha de Pontuações'!C225)","v":"0"}]
[null,223,{"$f":"'Folha de Pontuações'!C226&COUNTIF('Folha de Pontuações'!$C$4:C226,'Folha de Pontuações'!C226)","v":"0"}]
[null,224,{"$f":"'Folha de Pontuações'!C227&COUNTIF('Folha de Pontuações'!$C$4:C227,'Folha de Pontuações'!C227)","v":"0"}]
[null,225,{"$f":"'Folha de Pontuações'!C228&COUNTIF('Folha de Pontuações'!$C$4:C228,'Folha de Pontuações'!C228)","v":"0"}]
[null,226,{"$f":"'Folha de Pontuações'!C229&COUNTIF('Folha de Pontuações'!$C$4:C229,'Folha de Pontuações'!C229)","v":"0"}]
[null,227,{"$f":"'Folha de Pontuações'!C230&COUNTIF('Folha de Pontuações'!$C$4:C230,'Folha de Pontuações'!C230)","v":"0"}]
[null,228,{"$f":"'Folha de Pontuações'!C231&COUNTIF('Folha de Pontuações'!$C$4:C231,'Folha de Pontuações'!C231)","v":"0"}]
[null,229,{"$f":"'Folha de Pontuações'!C232&COUNTIF('Folha de Pontuações'!$C$4:C232,'Folha de Pontuações'!C232)","v":"0"}]
[null,230,{"$f":"'Folha de Pontuações'!C233&COUNTIF('Folha de Pontuações'!$C$4:C233,'Folha de Pontuações'!C233)","v":"0"}]
[null,231,{"$f":"'Folha de Pontuações'!C234&COUNTIF('Folha de Pontuações'!$C$4:C234,'Folha de Pontuações'!C234)","v":"0"}]
[null,232,{"$f":"'Folha de Pontuações'!C235&COUNTIF('Folha de Pontuações'!$C$4:C235,'Folha de Pontuações'!C235)","v":"0"}]
[null,233,{"$f":"'Folha de Pontuações'!C236&COUNTIF('Folha de Pontuações'!$C$4:C236,'Folha de Pontuações'!C236)","v":"0"}]
[null,234,{"$f":"'Folha de Pontuações'!C237&COUNTIF('Folha de Pontuações'!$C$4:C237,'Folha de Pontuações'!C237)","v":"0"}]
[null,235,{"$f":"'Folha de Pontuações'!C238&COUNTIF('Folha de Pontuações'!$C$4:C238,'Folha de Pontuações'!C238)","v":"0"}]
[null,236,{"$f":"'Folha de Pontuações'!C239&COUNTIF('Folha de Pontuações'!$C$4:C239,'Folha de Pontuações'!C239)","v":"0"}]
[null,237,{"$f":"'Folha de Pontuações'!C240&COUNTIF('Folha de Pontuações'!$C$4:C240,'Folha de Pontuações'!C240)","v":"0"}]
[null,238,{"$f":"'Folha de Pontuações'!C241&COUNTIF('Folha de Pontuações'!$C$4:C241,'Folha de Pontuações'!C241)","v":"0"}]
[null,239,{"$f":"'Folha de Pontuações'!C242&COUNTIF('Folha de Pontuações'!$C$4:C242,'Folha de Pontuações'!C242)","v":"0"}]
[null,240,{"$f":"'Folha de Pontuações'!C243&COUNTIF('Folha de Pontuações'!$C$4:C243,'Folha de Pontuações'!C243)","v":"0"}]
[null,241,{"$f":"'Folha de Pontuações'!C244&COUNTIF('Folha de Pontuações'!$C$4:C244,'Folha de Pontuações'!C244)","v":"0"}]
[null,242,{"$f":"'Folha de Pontuações'!C245&COUNTIF('Folha de Pontuações'!$C$4:C245,'Folha de Pontuações'!C245)","v":"0"}]
[null,243,{"$f":"'Folha de Pontuações'!C246&COUNTIF('Folha de Pontuações'!$C$4:C246,'Folha de Pontuações'!C246)","v":"0"}]
[null,244,{"$f":"'Folha de Pontuações'!C247&COUNTIF('Folha de Pontuações'!$C$4:C247,'Folha de Pontuações'!C247)","v":"0"}]
[null,245,{"$f":"'Folha de Pontuações'!C248&COUNTIF('Folha de Pontuações'!$C$4:C248,'Folha de Pontuações'!C248)","v":"0"}]
[null,246,{"$f":"'Folha de Pontuações'!C249&COUNTIF('Folha de Pontuações'!$C$4:C249,'Folha de Pontuações'!C249)","v":"0"}]
[null,247,{"$f":"'Folha de Pontuações'!C250&COUNTIF('Folha de Pontuações'!$C$4:C250,'Folha de Pontuações'!C250)","v":"0"}]
[null,248,{"$f":"'Folha de Pontuações'!C251&COUNTIF('Folha de Pontuações'!$C$4:C251,'Folha de Pontuações'!C251)","v":"0"}]
[null,249,{"$f":"'Folha de Pontuações'!C252&COUNTIF('Folha de Pontuações'!$C$4:C252,'Folha de Pontuações'!C252)","v":"0"}]
[null,250,{"$f":"'Folha de Pontuações'!C253&COUNTIF('Folha de Pontuações'!$C$4:C253,'Folha de Pontuações'!C253)","v":"0"}]
[null,251,{"$f":"'Folha de Pontuações'!C254&COUNTIF('Folha de Pontuações'!$C$4:C254,'Folha de Pontuações'!C254)","v":"0"}]
[null,252,{"$f":"'Folha de Pontuações'!C255&COUNTIF('Folha de Pontuações'!$C$4:C255,'Folha de Pontuações'!C255)","v":"0"}]
[null,253,{"$f":"'Folha de Pontuações'!C256&COUNTIF('Folha de Pontuações'!$C$4:C256,'Folha de Pontuações'!C256)","v":"0"}]
[null,254,{"$f":"'Folha de Pontuações'!C257&COUNTIF('Folha de Pontuações'!$C$4:C257,'Folha de Pontuações'!C257)","v":"0"}]
[null,255,{"$f":"'Folha de Pontuações'!C258&COUNTIF('Folha de Pontuações'!$C$4:C258,'Folha de Pontuações'!C258)","v":"0"}]
[null,256,{"$f":"'Folha de Pontuações'!C259&COUNTIF('Folha de Pontuações'!$C$4:C259,'Folha de Pontuações'!C259)","v":"0"}]
[null,257,{"$f":"'Folha de Pontuações'!C260&COUNTIF('Folha de Pontuações'!$C$4:C260,'Folha de Pontuações'!C260)","v":"0"}]
[null,258,{"$f":"'Folha de Pontuações'!C261&COUNTIF('Folha de Pontuações'!$C$4:C261,'Folha de Pontuações'!C261)","v":"0"}]
[null,259,{"$f":"'Folha de Pontuações'!C262&COUNTIF('Folha de Pontuações'!$C$4:C262,'Folha de Pontuações'!C262)","v":"0"}]
[null,260,{"$f":"'Folha de Pontuações'!C263&COUNTIF('Folha de Pontuações'!$C$4:C263,'Folha de Pontuações'!C263)","v":"0"}]
[null,261,{"$f":"'Folha de Pontuações'!C264&COUNTIF('Folha de Pontuações'!$C$4:C264,'Folha de Pontuações'!C264)","v":"0"}]
[null,262,{"$f":"'Folha de Pontuações'!C265&COUNTIF('Folha de Pontuações'!$C$4:C265,'Folha de Pontuações'!C265)","v":"0"}]
[null,263,{"$f":"'Folha de Pontuações'!C266&COUNTIF('Folha de Pontuações'!$C$4:C266,'Folha de Pontuações'!C266)","v":"0"}]
[null,264,{"$f":"'Folha de Pontuações'!C267&COUNTIF('Folha de Pontuações'!$C$4:C267,'Folha de Pontuações'!C267)","v":"0"}]
[null,265,{"$f":"'Folha de Pontuações'!C268&COUNTIF('Folha de Pontuações'!$C$4:C268,'Folha de Pontuações'!C268)","v":"0"}]
[null,266,{"$f":"'Folha de Pontuações'!C269&COUNTIF('Folha de Pontuações'!$C$4:C269,'Folha de Pontuações'!C269)","v":"0"}]
[null,267,{"$f":"'Folha de Pontuações'!C270&COUNTIF('Folha de Pontuações'!$C$4:C270,'Folha de Pontuações'!C270)","v":"0"}]
[null,268,{"$f":"'Folha de Pontuações'!C271&COUNTIF('Folha de Pontuações'!$C$4:C271,'Folha de Pontuações'!C271)","v":"0"}]
[null,269,{"$f":"'Folha de Pontuações'!C272&COUNTIF('Folha de Pontuações'!$C$4:C272,'Folha de Pontuações'!C272)","v":"0"}]
[null,270,{"$f":"'Folha de Pontuações'!C273&COUNTIF('Folha de Pontuações'!$C$4:C273,'Folha de Pontuações'!C273)","v":"0"}]
[null,271,{"$f":"'Folha de Pontuações'!C274&COUNTIF('Folha de Pontuações'!$C$4:C274,'Folha de Pontuações'!C274)","v":"0"}]
[null,272,{"$f":"'Folha de Pontuações'!C275&COUNTIF('Folha de Pontuações'!$C$4:C275,'Folha de Pontuações'!C275)","v":"0"}]
[null,273,{"$f":"'Folha de Pontuações'!C276&COUNTIF('Folha de Pontuações'!$C$4:C276,'Folha de Pontuações'!C276)","v":"0"}]
[null,274,{"$f":"'Folha de Pontuações'!C277&COUNTIF('Folha de Pontuações'!$C$4:C277,'Folha de Pontuações'!C277)","v":"0"}]
[null,275,{"$f":"'Folha de Pontuações'!C278&COUNTIF('Folha de Pontuações'!$C$4:C278,'Folha de Pontuações'!C278)","v":"0"}]
[null,276,{"$f":"'Folha de Pontuações'!C279&COUNTIF('Folha de Pontuações'!$C$4:C279,'Folha de Pontuações'!C279)","v":"0"}]
[null,277,{"$f":"'Folha de Pontuações'!C280&COUNTIF('Folha de Pontuações'!$C$4:C280,'Folha de Pontuações'!C280)","v":"0"}]
[null,278,{"$f":"'Folha de Pontuações'!C281&COUNTIF('Folha de Pontuações'!$C$4:C281,'Folha de Pontuações'!C281)","v":"0"}]
[null,279,{"$f":"'Folha de Pontuações'!C282&COUNTIF('Folha de Pontuações'!$C$4:C282,'Folha de Pontuações'!C282)","v":"0"}]
[null,280,{"$f":"'Folha de Pontuações'!C283&COUNTIF('Folha de Pontuações'!$C$4:C283,'Folha de Pontuações'!C283)","v":"0"}]
[null,281,{"$f":"'Folha de Pontuações'!C284&COUNTIF('Folha de Pontuações'!$C$4:C284,'Folha de Pontuações'!C284)","v":"0"}]
[null,282,{"$f":"'Folha de Pontuações'!C285&COUNTIF('Folha de Pontuações'!$C$4:C285,'Folha de Pontuações'!C285)","v":"0"}]
[null,283,{"$f":"'Folha de Pontuações'!C286&COUNTIF('Folha de Pontuações'!$C$4:C286,'Folha de Pontuações'!C286)","v":"0"}]
[null,284,{"$f":"'Folha de Pontuações'!C287&COUNTIF('Folha de Pontuações'!$C$4:C287,'Folha de Pontuações'!C287)","v":"0"}]
[null,285,{"$f":"'Folha de Pontuações'!C288&COUNTIF('Folha de Pontuações'!$C$4:C288,'Folha de Pontuações'!C288)","v":"0"}]
[null,286,{"$f":"'Folha de Pontuações'!C289&COUNTIF('Folha de Pontuações'!$C$4:C289,'Folha de Pontuações'!C289)","v":"0"}]
[null,287,{"$f":"'Folha de Pontuações'!C290&COUNTIF('Folha de Pontuações'!$C$4:C290,'Folha de Pontuações'!C290)","v":"0"}]
[null,288,{"$f":"'Folha de Pontuações'!C291&COUNTIF('Folha de Pontuações'!$C$4:C291,'Folha de Pontuações'!C291)","v":"0"}]
[null,289,{"$f":"'Folha de Pontuações'!C292&COUNTIF('Folha de Pontuações'!$C$4:C292,'Folha de Pontuações'!C292)","v":"0"}]
[null,290,{"$f":"'Folha de Pontuações'!C293&COUNTIF('Folha de Pontuações'!$C$4:C293,'Folha de Pontuações'!C293)","v":"0"}]
[null,291,{"$f":"'Folha de Pontuações'!C294&COUNTIF('Folha de Pontuações'!$C$4:C294,'Folha de Pontuações'!C294)","v":"0"}]
[null,292,{"$f":"'Folha de Pontuações'!C295&COUNTIF('Folha de Pontuações'!$C$4:C295,'Folha de Pontuações'!C295)","v":"0"}]
[null,293,{"$f":"'Folha de Pontuações'!C296&COUNTIF('Folha de Pontuações'!$C$4:C296,'Folha de Pontuações'!C296)","v":"0"}]
[null,294,{"$f":"'Folha de Pontuações'!C297&COUNTIF('Folha de Pontuações'!$C$4:C297,'Folha de Pontuações'!C297)","v":"0"}]
[null,295,{"$f":"'Folha de Pontuações'!C298&COUNTIF('Folha de Pontuações'!$C$4:C298,'Folha de Pontuações'!C298)","v":"0"}]
[null,296,{"$f":"'Folha de Pontuações'!C299&COUNTIF('Folha de Pontuações'!$C$4:C299,'Folha de Pontuações'!C299)","v":"0"}]
[null,297,{"$f":"'Folha de Pontuações'!C300&COUNTIF('Folha de Pontuações'!$C$4:C300,'Folha de Pontuações'!C300)","v":"0"}]
[null,298,{"$f":"'Folha de Pontuações'!C301&COUNTIF('Folha de Pontuações'!$C$4:C301,'Folha de Pontuações'!C301)","v":"0"}]
[null,299,{"$f":"'Folha de Pontuações'!C302&COUNTIF('Folha de Pontuações'!$C$4:C302,'Folha de Pontuações'!C302)","v":"0"}]
[null,300,{"$f":"'Folha de Pontuações'!C303&COUNTIF('Folha de Pontuações'!$C$4:C303,'Folha de Pontuações'!C303)","v":"0"}]
[null,301,{"$f":"'Folha de Pontuações'!C304&COUNTIF('Folha de Pontuações'!$C$4:C304,'Folha de Pontuações'!C304)","v":"0"}]
[null,302,{"$f":"'Folha de Pontuações'!C305&COUNTIF('Folha de Pontuações'!$C$4:C305,'Folha de Pontuações'!C305)","v":"0"}]
[null,303,{"$f":"'Folha de Pontuações'!C306&COUNTIF('Folha de Pontuações'!$C$4:C306,'Folha de Pontuações'!C306)","v":"0"}]
[null,304,{"$f":"'Folha de Pontuações'!C307&COUNTIF('Folha de Pontuações'!$C$4:C307,'Folha de Pontuações'!C307)","v":"0"}]
[null,305,{"$f":"'Folha de Pontuações'!C308&COUNTIF('Folha de Pontuações'!$C$4:C308,'Folha de Pontuações'!C308)","v":"0"}]
[null,306,{"$f":"'Folha de Pontuações'!C309&COUNTIF('Folha de Pontuações'!$C$4:C309,'Folha de Pontuações'!C309)","v":"0"}]
[null,307,{"$f":"'Folha de Pontuações'!C310&COUNTIF('Folha de Pontuações'!$C$4:C310,'Folha de Pontuações'!C310)","v":"0"}]
[null,308,{"$f":"'Folha de Pontuações'!C311&COUNTIF('Folha de Pontuações'!$C$4:C311,'Folha de Pontuações'!C311)","v":"0"}]
[null,309,{"$f":"'Folha de Pontuações'!C312&COUNTIF('Folha de Pontuações'!$C$4:C312,'Folha de Pontuações'!C312)","v":"0"}]
[null,310,{"$f":"'Folha de Pontuações'!C313&COUNTIF('Folha de Pontuações'!$C$4:C313,'Folha de Pontuações'!C313)","v":"0"}]
[null,311,{"$f":"'Folha de Pontuações'!C314&COUNTIF('Folha de Pontuações'!$C$4:C314,'Folha de Pontuações'!C314)","v":"0"}]
[null,312,{"$f":"'Folha de Pontuações'!C315&COUNTIF('Folha de Pontuações'!$C$4:C315,'Folha de Pontuações'!C315)","v":"0"}]
[null,313,{"$f":"'Folha de Pontuações'!C316&COUNTIF('Folha de Pontuações'!$C$4:C316,'Folha de Pontuações'!C316)","v":"0"}]
[null,314,{"$f":"'Folha de Pontuações'!C317&COUNTIF('Folha de Pontuações'!$C$4:C317,'Folha de Pontuações'!C317)","v":"0"}]
[null,315,{"$f":"'Folha de Pontuações'!C318&COUNTIF('Folha de Pontuações'!$C$4:C318,'Folha de Pontuações'!C318)","v":"0"}]
[null,316,{"$f":"'Folha de Pontuações'!C319&COUNTIF('Folha de Pontuações'!$C$4:C319,'Folha de Pontuações'!C319)","v":"0"}]
[null,317,{"$f":"'Folha de Pontuações'!C320&COUNTIF('Folha de Pontuações'!$C$4:C320,'Folha de Pontuações'!C320)","v":"0"}]
[null,318,{"$f":"'Folha de Pontuações'!C321&COUNTIF('Folha de Pontuações'!$C$4:C321,'Folha de Pontuações'!C321)","v":"0"}]
[null,319,{"$f":"'Folha de Pontuações'!C322&COUNTIF('Folha de Pontuações'!$C$4:C322,'Folha de Pontuações'!C322)","v":"0"}]
[null,320,{"$f":"'Folha de Pontuações'!C323&COUNTIF('Folha de Pontuações'!$C$4:C323,'Folha de Pontuações'!C323)","v":"0"}]
[null,321,{"$f":"'Folha de Pontuações'!C324&COUNTIF('Folha de Pontuações'!$C$4:C324,'Folha de Pontuações'!C324)","v":"0"}]
[null,322,{"$f":"'Folha de Pontuações'!C325&COUNTIF('Folha de Pontuações'!$C$4:C325,'Folha de Pontuações'!C325)","v":"0"}]
[null,323,{"$f":"'Folha de Pontuações'!C326&COUNTIF('Folha de Pontuações'!$C$4:C326,'Folha de Pontuações'!C326)","v":"0"}]
[null,324,{"$f":"'Folha de Pontuações'!C327&COUNTIF('Folha de Pontuações'!$C$4:C327,'Folha de Pontuações'!C327)","v":"0"}]
[null,325,{"$f":"'Folha de Pontuações'!C328&COUNTIF('Folha de Pontuações'!$C$4:C328,'Folha de Pontuações'!C328)","v":"0"}]
[null,326,{"$f":"'Folha de Pontuações'!C329&COUNTIF('Folha de Pontuações'!$C$4:C329,'Folha de Pontuações'!C329)","v":"0"}]
[null,327,{"$f":"'Folha de Pontuações'!C330&COUNTIF('Folha de Pontuações'!$C$4:C330,'Folha de Pontuações'!C330)","v":"0"}]
[null,328,{"$f":"'Folha de Pontuações'!C331&COUNTIF('Folha de Pontuações'!$C$4:C331,'Folha de Pontuações'!C331)","v":"0"}]
[null,329,{"$f":"'Folha de Pontuações'!C332&COUNTIF('Folha de Pontuações'!$C$4:C332,'Folha de Pontuações'!C332)","v":"0"}]
[null,330,{"$f":"'Folha de Pontuações'!C333&COUNTIF('Folha de Pontuações'!$C$4:C333,'Folha de Pontuações'!C333)","v":"0"}]
[null,331,{"$f":"'Folha de Pontuações'!C334&COUNTIF('Folha de Pontuações'!$C$4:C334,'Folha de Pontuações'!C334)","v":"0"}]
[null,332,{"$f":"'Folha de Pontuações'!C335&COUNTIF('Folha de Pontuações'!$C$4:C335,'Folha de Pontuações'!C335)","v":"0"}]
[null,333,{"$f":"'Folha de Pontuações'!C336&COUNTIF('Folha de Pontuações'!$C$4:C336,'Folha de Pontuações'!C336)","v":"0"}]
[null,334,{"$f":"'Folha de Pontuações'!C337&COUNTIF('Folha de Pontuações'!$C$4:C337,'Folha de Pontuações'!C337)","v":"0"}]
[null,335,{"$f":"'Folha de Pontuações'!C338&COUNTIF('Folha de Pontuações'!$C$4:C338,'Folha de Pontuações'!C338)","v":"0"}]
[null,336,{"$f":"'Folha de Pontuações'!C339&COUNTIF('Folha de Pontuações'!$C$4:C339,'Folha de Pontuações'!C339)","v":"0"}]
[null,337,{"$f":"'Folha de Pontuações'!C340&COUNTIF('Folha de Pontuações'!$C$4:C340,'Folha de Pontuações'!C340)","v":"0"}]
[null,338,{"$f":"'Folha de Pontuações'!C341&COUNTIF('Folha de Pontuações'!$C$4:C341,'Folha de Pontuações'!C341)","v":"0"}]
[null,339,{"$f":"'Folha de Pontuações'!C342&COUNTIF('Folha de Pontuações'!$C$4:C342,'Folha de Pontuações'!C342)","v":"0"}]
[null,340,{"$f":"'Folha de Pontuações'!C343&COUNTIF('Folha de Pontuações'!$C$4:C343,'Folha de Pontuações'!C343)","v":"0"}]
[null,341,{"$f":"'Folha de Pontuações'!C344&COUNTIF('Folha de Pontuações'!$C$4:C344,'Folha de Pontuações'!C344)","v":"0"}]
[null,342,{"$f":"'Folha de Pontuações'!C345&COUNTIF('Folha de Pontuações'!$C$4:C345,'Folha de Pontuações'!C345)","v":"0"}]
[null,343,{"$f":"'Folha de Pontuações'!C346&COUNTIF('Folha de Pontuações'!$C$4:C346,'Folha de Pontuações'!C346)","v":"0"}]
[null,344,{"$f":"'Folha de Pontuações'!C347&COUNTIF('Folha de Pontuações'!$C$4:C347,'Folha de Pontuações'!C347)","v":"0"}]
[null,345,{"$f":"'Folha de Pontuações'!C348&COUNTIF('Folha de Pontuações'!$C$4:C348,'Folha de Pontuações'!C348)","v":"0"}]
[null,346,{"$f":"'Folha de Pontuações'!C349&COUNTIF('Folha de Pontuações'!$C$4:C349,'Folha de Pontuações'!C349)","v":"0"}]
[null,347,{"$f":"'Folha de Pontuações'!C350&COUNTIF('Folha de Pontuações'!$C$4:C350,'Folha de Pontuações'!C350)","v":"0"}]
[null,348,{"$f":"'Folha de Pontuações'!C351&COUNTIF('Folha de Pontuações'!$C$4:C351,'Folha de Pontuações'!C351)","v":"0"}]
[null,349,{"$f":"'Folha de Pontuações'!C352&COUNTIF('Folha de Pontuações'!$C$4:C352,'Folha de Pontuações'!C352)","v":"0"}]
[null,350,{"$f":"'Folha de Pontuações'!C353&COUNTIF('Folha de Pontuações'!$C$4:C353,'Folha de Pontuações'!C353)","v":"0"}]
[null,351,{"$f":"'Folha de Pontuações'!C354&COUNTIF('Folha de Pontuações'!$C$4:C354,'Folha de Pontuações'!C354)","v":"0"}]
[null,352,{"$f":"'Folha de Pontuações'!C355&COUNTIF('Folha de Pontuações'!$C$4:C355,'Folha de Pontuações'!C355)","v":"0"}]
[null,353,{"$f":"'Folha de Pontuações'!C356&COUNTIF('Folha de Pontuações'!$C$4:C356,'Folha de Pontuações'!C356)","v":"0"}]
[null,354,{"$f":"'Folha de Pontuações'!C357&COUNTIF('Folha de Pontuações'!$C$4:C357,'Folha de Pontuações'!C357)","v":"0"}]
[null,355,{"$f":"'Folha de Pontuações'!C358&COUNTIF('Folha de Pontuações'!$C$4:C358,'Folha de Pontuações'!C358)","v":"0"}]
[null,356,{"$f":"'Folha de Pontuações'!C359&COUNTIF('Folha de Pontuações'!$C$4:C359,'Folha de Pontuações'!C359)","v":"0"}]
[null,357,{"$f":"'Folha de Pontuações'!C360&COUNTIF('Folha de Pontuações'!$C$4:C360,'Folha de Pontuações'!C360)","v":"0"}]
[null,358,{"$f":"'Folha de Pontuações'!C361&COUNTIF('Folha de Pontuações'!$C$4:C361,'Folha de Pontuações'!C361)","v":"0"}]
[null,359,{"$f":"'Folha de Pontuações'!C362&COUNTIF('Folha de Pontuações'!$C$4:C362,'Folha de Pontuações'!C362)","v":"0"}]
[null,360,{"$f":"'Folha de Pontuações'!C363&COUNTIF('Folha de Pontuações'!$C$4:C363,'Folha de Pontuações'!C363)","v":"0"}]
[null,361,{"$f":"'Folha de Pontuações'!C364&COUNTIF('Folha de Pontuações'!$C$4:C364,'Folha de Pontuações'!C364)","v":"0"}]
[null,362,{"$f":"'Folha de Pontuações'!C365&COUNTIF('Folha de Pontuações'!$C$4:C365,'Folha de Pontuações'!C365)","v":"0"}]
[null,363,{"$f":"'Folha de Pontuações'!C366&COUNTIF('Folha de Pontuações'!$C$4:C366,'Folha de Pontuações'!C366)","v":"0"}]
[null,364,{"$f":"'Folha de Pontuações'!C367&COUNTIF('Folha de Pontuações'!$C$4:C367,'Folha de Pontuações'!C367)","v":"0"}]
[null,365,{"$f":"'Folha de Pontuações'!C368&COUNTIF('Folha de Pontuações'!$C$4:C368,'Folha de Pontuações'!C368)","v":"0"}]
[null,366,{"$f":"'Folha de Pontuações'!C369&COUNTIF('Folha de Pontuações'!$C$4:C369,'Folha de Pontuações'!C369)","v":"0"}]
[null,367,{"$f":"'Folha de Pontuações'!C370&COUNTIF('Folha de Pontuações'!$C$4:C370,'Folha de Pontuações'!C370)","v":"0"}]
[null,368,{"$f":"'Folha de Pontuações'!C371&COUNTIF('Folha de Pontuações'!$C$4:C371,'Folha de Pontuações'!C371)","v":"0"}]
[null,369,{"$f":"'Folha de Pontuações'!C372&COUNTIF('Folha de Pontuações'!$C$4:C372,'Folha de Pontuações'!C372)","v":"0"}]
[null,370,{"$f":"'Folha de Pontuações'!C373&COUNTIF('Folha de Pontuações'!$C$4:C373,'Folha de Pontuações'!C373)","v":"0"}]
[null,371,{"$f":"'Folha de Pontuações'!C374&COUNTIF('Folha de Pontuações'!$C$4:C374,'Folha de Pontuações'!C374)","v":"0"}]
[null,372,{"$f":"'Folha de Pontuações'!C375&COUNTIF('Folha de Pontuações'!$C$4:C375,'Folha de Pontuações'!C375)","v":"0"}]
[null,373,{"$f":"'Folha de Pontuações'!C376&COUNTIF('Folha de Pontuações'!$C$4:C376,'Folha de Pontuações'!C376)","v":"0"}]
[null,374,{"$f":"'Folha de Pontuações'!C377&COUNTIF('Folha de Pontuações'!$C$4:C377,'Folha de Pontuações'!C377)","v":"0"}]
[null,375,{"$f":"'Folha de Pontuações'!C378&COUNTIF('Folha de Pontuações'!$C$4:C378,'Folha de Pontuações'!C378)","v":"0"}]
[null,376,{"$f":"'Folha de Pontuações'!C379&COUNTIF('Folha de Pontuações'!$C$4:C379,'Folha de Pontuações'!C379)","v":"0"}]
[null,377,{"$f":"'Folha de Pontuações'!C380&COUNTIF('Folha de Pontuações'!$C$4:C380,'Folha de Pontuações'!C380)","v":"0"}]
[null,378,{"$f":"'Folha de Pontuações'!C381&COUNTIF('Folha de Pontuações'!$C$4:C381,'Folha de Pontuações'!C381)","v":"0"}]
[null,379,{"$f":"'Folha de Pontuações'!C382&COUNTIF('Folha de Pontuações'!$C$4:C382,'Folha de Pontuações'!C382)","v":"0"}]
[null,380,{"$f":"'Folha de Pontuações'!C383&COUNTIF('Folha de Pontuações'!$C$4:C383,'Folha de Pontuações'!C383)","v":"0"}]
[null,381,{"$f":"'Folha de Pontuações'!C384&COUNTIF('Folha de Pontuações'!$C$4:C384,'Folha de Pontuações'!C384)","v":"0"}]
[null,382,{"$f":"'Folha de Pontuações'!C385&COUNTIF('Folha de Pontuações'!$C$4:C385,'Folha de Pontuações'!C385)","v":"0"}]
[null,383,{"$f":"'Folha de Pontuações'!C386&COUNTIF('Folha de Pontuações'!$C$4:C386,'Folha de Pontuações'!C386)","v":"0"}]
[null,384,{"$f":"'Folha de Pontuações'!C387&COUNTIF('Folha de Pontuações'!$C$4:C387,'Folha de Pontuações'!C387)","v":"0"}]
[null,385,{"$f":"'Folha de Pontuações'!C388&COUNTIF('Folha de Pontuações'!$C$4:C388,'Folha de Pontuações'!C388)","v":"0"}]
[null,386,{"$f":"'Folha de Pontuações'!C389&COUNTIF('Folha de Pontuações'!$C$4:C389,'Folha de Pontuações'!C389)","v":"0"}]
[null,387,{"$f":"'Folha de Pontuações'!C390&COUNTIF('Folha de Pontuações'!$C$4:C390,'Folha de Pontuações'!C390)","v":"0"}]
[null,388,{"$f":"'Folha de Pontuações'!C391&COUNTIF('Folha de Pontuações'!$C$4:C391,'Folha de Pontuações'!C391)","v":"0"}]
[null,389,{"$f":"'Folha de Pontuações'!C392&COUNTIF('Folha de Pontuações'!$C$4:C392,'Folha de Pontuações'!C392)","v":"0"}]
[null,390,{"$f":"'Folha de Pontuações'!C393&COUNTIF('Folha de Pontuações'!$C$4:C393,'Folha de Pontuações'!C393)","v":"0"}]
[null,391,{"$f":"'Folha de Pontuações'!C394&COUNTIF('Folha de Pontuações'!$C$4:C394,'Folha de Pontuações'!C394)","v":"0"}]
[null,392,{"$f":"'Folha de Pontuações'!C395&COUNTIF('Folha de Pontuações'!$C$4:C395,'Folha de Pontuações'!C395)","v":"0"}]
[null,393,{"$f":"'Folha de Pontuações'!C396&COUNTIF('Folha de Pontuações'!$C$4:C396,'Folha de Pontuações'!C396)","v":"0"}]
[null,394,{"$f":"'Folha de Pontuações'!C397&COUNTIF('Folha de Pontuações'!$C$4:C397,'Folha de Pontuações'!C397)","v":"0"}]
[null,395,{"$f":"'Folha de Pontuações'!C398&COUNTIF('Folha de Pontuações'!$C$4:C398,'Folha de Pontuações'!C398)","v":"0"}]
[null,396,{"$f":"'Folha de Pontuações'!C399&COUNTIF('Folha de Pontuações'!$C$4:C399,'Folha de Pontuações'!C399)","v":"0"}]
[null,397,{"$f":"'Folha de Pontuações'!C400&COUNTIF('Folha de Pontuações'!$C$4:C400,'Folha de Pontuações'!C400)","v":"0"}]
[null,398,{"$f":"'Folha de Pontuações'!C401&COUNTIF('Folha de Pontuações'!$C$4:C401,'Folha de Pontuações'!C401)","v":"0"}]
[null,399,{"$f":"'Folha de Pontuações'!C402&COUNTIF('Folha de Pontuações'!$C$4:C402,'Folha de Pontuações'!C402)","v":"0"}]
[null,400,{"$f":"'Folha de Pontuações'!C403&COUNTIF('Folha de Pontuações'!$C$4:C403,'Folha de Pontuações'!C403)","v":"0"}]
[null,401,{"$f":"'Folha de Pontuações'!C404&COUNTIF('Folha de Pontuações'!$C$4:C404,'Folha de Pontuações'!C404)","v":"0"}]
[null,402,{"$f":"'Folha de Pontuações'!C405&COUNTIF('Folha de Pontuações'!$C$4:C405,'Folha de Pontuações'!C405)","v":"0"}]
[null,403,{"$f":"'Folha de Pontuações'!C406&COUNTIF('Folha de Pontuações'!$C$4:C406,'Folha de Pontuações'!C406)","v":"0"}]
[null,404,{"$f":"'Folha de Pontuações'!C407&COUNTIF('Folha de Pontuações'!$C$4:C407,'Folha de Pontuações'!C407)","v":"0"}]
[null,405,{"$f":"'Folha de Pontuações'!C408&COUNTIF('Folha de Pontuações'!$C$4:C408,'Folha de Pontuações'!C408)","v":"0"}]
[null,406,{"$f":"'Folha de Pontuações'!C409&COUNTIF('Folha de Pontuações'!$C$4:C409,'Folha de Pontuações'!C409)","v":"0"}]
[null,407,{"$f":"'Folha de Pontuações'!C410&COUNTIF('Folha de Pontuações'!$C$4:C410,'Folha de Pontuações'!C410)","v":"0"}]
[null,408,{"$f":"'Folha de Pontuações'!C411&COUNTIF('Folha de Pontuações'!$C$4:C411,'Folha de Pontuações'!C411)","v":"0"}]
[null,409,{"$f":"'Folha de Pontuações'!C412&COUNTIF('Folha de Pontuações'!$C$4:C412,'Folha de Pontuações'!C412)","v":"0"}]
[null,410,{"$f":"'Folha de Pontuações'!C413&COUNTIF('Folha de Pontuações'!$C$4:C413,'Folha de Pontuações'!C413)","v":"0"}]
[null,411,{"$f":"'Folha de Pontuações'!C414&COUNTIF('Folha de Pontuações'!$C$4:C414,'Folha de Pontuações'!C414)","v":"0"}]
[null,412,{"$f":"'Folha de Pontuações'!C415&COUNTIF('Folha de Pontuações'!$C$4:C415,'Folha de Pontuações'!C415)","v":"0"}]
[null,413,{"$f":"'Folha de Pontuações'!C416&COUNTIF('Folha de Pontuações'!$C$4:C416,'Folha de Pontuações'!C416)","v":"0"}]
[null,414,{"$f":"'Folha de Pontuações'!C417&COUNTIF('Folha de Pontuações'!$C$4:C417,'Folha de Pontuações'!C417)","v":"0"}]
[null,415,{"$f":"'Folha de Pontuações'!C418&COUNTIF('Folha de Pontuações'!$C$4:C418,'Folha de Pontuações'!C418)","v":"0"}]
[null,416,{"$f":"'Folha de Pontuações'!C419&COUNTIF('Folha de Pontuações'!$C$4:C419,'Folha de Pontuações'!C419)","v":"0"}]
[null,417,{"$f":"'Folha de Pontuações'!C420&COUNTIF('Folha de Pontuações'!$C$4:C420,'Folha de Pontuações'!C420)","v":"0"}]
[null,418,{"$f":"'Folha de Pontuações'!C421&COUNTIF('Folha de Pontuações'!$C$4:C421,'Folha de Pontuações'!C421)","v":"0"}]
[null,419,{"$f":"'Folha de Pontuações'!C422&COUNTIF('Folha de Pontuações'!$C$4:C422,'Folha de Pontuações'!C422)","v":"0"}]
[null,420,{"$f":"'Folha de Pontuações'!C423&COUNTIF('Folha de Pontuações'!$C$4:C423,'Folha de Pontuações'!C423)","v":"0"}]
[null,421,{"$f":"'Folha de Pontuações'!C424&COUNTIF('Folha de Pontuações'!$C$4:C424,'Folha de Pontuações'!C424)","v":"0"}]
[null,422,{"$f":"'Folha de Pontuações'!C425&COUNTIF('Folha de Pontuações'!$C$4:C425,'Folha de Pontuações'!C425)","v":"0"}]
[null,423,{"$f":"'Folha de Pontuações'!C426&COUNTIF('Folha de Pontuações'!$C$4:C426,'Folha de Pontuações'!C426)","v":"0"}]
[null,424,{"$f":"'Folha de Pontuações'!C427&COUNTIF('Folha de Pontuações'!$C$4:C427,'Folha de Pontuações'!C427)","v":"0"}]
[null,425,{"$f":"'Folha de Pontuações'!C428&COUNTIF('Folha de Pontuações'!$C$4:C428,'Folha de Pontuações'!C428)","v":"0"}]
[null,426,{"$f":"'Folha de Pontuações'!C429&COUNTIF('Folha de Pontuações'!$C$4:C429,'Folha de Pontuações'!C429)","v":"0"}]
[null,427,{"$f":"'Folha de Pontuações'!C430&COUNTIF('Folha de Pontuações'!$C$4:C430,'Folha de Pontuações'!C430)","v":"0"}]
[null,428,{"$f":"'Folha de Pontuações'!C431&COUNTIF('Folha de Pontuações'!$C$4:C431,'Folha de Pontuações'!C431)","v":"0"}]
[null,429,{"$f":"'Folha de Pontuações'!C432&COUNTIF('Folha de Pontuações'!$C$4:C432,'Folha de Pontuações'!C432)","v":"0"}]
[null,430,{"$f":"'Folha de Pontuações'!C433&COUNTIF('Folha de Pontuações'!$C$4:C433,'Folha de Pontuações'!C433)","v":"0"}]
[null,431,{"$f":"'Folha de Pontuações'!C434&COUNTIF('Folha de Pontuações'!$C$4:C434,'Folha de Pontuações'!C434)","v":"0"}]
[null,432,{"$f":"'Folha de Pontuações'!C435&COUNTIF('Folha de Pontuações'!$C$4:C435,'Folha de Pontuações'!C435)","v":"0"}]
[null,433,{"$f":"'Folha de Pontuações'!C436&COUNTIF('Folha de Pontuações'!$C$4:C436,'Folha de Pontuações'!C436)","v":"0"}]
[null,434,{"$f":"'Folha de Pontuações'!C437&COUNTIF('Folha de Pontuações'!$C$4:C437,'Folha de Pontuações'!C437)","v":"0"}]
[null,435,{"$f":"'Folha de Pontuações'!C438&COUNTIF('Folha de Pontuações'!$C$4:C438,'Folha de Pontuações'!C438)","v":"0"}]
[null,436,{"$f":"'Folha de Pontuações'!C439&COUNTIF('Folha de Pontuações'!$C$4:C439,'Folha de Pontuações'!C439)","v":"0"}]
[null,437,{"$f":"'Folha de Pontuações'!C440&COUNTIF('Folha de Pontuações'!$C$4:C440,'Folha de Pontuações'!C440)","v":"0"}]
[null,438,{"$f":"'Folha de Pontuações'!C441&COUNTIF('Folha de Pontuações'!$C$4:C441,'Folha de Pontuações'!C441)","v":"0"}]
[null,439,{"$f":"'Folha de Pontuações'!C442&COUNTIF('Folha de Pontuações'!$C$4:C442,'Folha de Pontuações'!C442)","v":"0"}]
[null,440,{"$f":"'Folha de Pontuações'!C443&COUNTIF('Folha de Pontuações'!$C$4:C443,'Folha de Pontuações'!C443)","v":"0"}]
[null,441,{"$f":"'Folha de Pontuações'!C444&COUNTIF('Folha de Pontuações'!$C$4:C444,'Folha de Pontuações'!C444)","v":"0"}]
[null,442,{"$f":"'Folha de Pontuações'!C445&COUNTIF('Folha de Pontuações'!$C$4:C445,'Folha de Pontuações'!C445)","v":"0"}]
[null,443,{"$f":"'Folha de Pontuações'!C446&COUNTIF('Folha de Pontuações'!$C$4:C446,'Folha de Pontuações'!C446)","v":"0"}]
[null,444,{"$f":"'Folha de Pontuações'!C447&COUNTIF('Folha de Pontuações'!$C$4:C447,'Folha de Pontuações'!C447)","v":"0"}]
[null,445,{"$f":"'Folha de Pontuações'!C448&COUNTIF('Folha de Pontuações'!$C$4:C448,'Folha de Pontuações'!C448)","v":"0"}]
[null,446,{"$f":"'Folha de Pontuações'!C449&COUNTIF('Folha de Pontuações'!$C$4:C449,'Folha de Pontuações'!C449)","v":"0"}]
[null,447,{"$f":"'Folha de Pontuações'!C450&COUNTIF('Folha de Pontuações'!$C$4:C450,'Folha de Pontuações'!C450)","v":"0"}]
[null,448,{"$f":"'Folha de Pontuações'!C451&COUNTIF('Folha de Pontuações'!$C$4:C451,'Folha de Pontuações'!C451)","v":"0"}]
[null,449,{"$f":"'Folha de Pontuações'!C452&COUNTIF('Folha de Pontuações'!$C$4:C452,'Folha de Pontuações'!C452)","v":"0"}]
[null,450,{"$f":"'Folha de Pontuações'!C453&COUNTIF('Folha de Pontuações'!$C$4:C453,'Folha de Pontuações'!C453)","v":"0"}]
[null,451,{"$f":"'Folha de Pontuações'!C454&COUNTIF('Folha de Pontuações'!$C$4:C454,'Folha de Pontuações'!C454)","v":"0"}]
[null,452,{"$f":"'Folha de Pontuações'!C455&COUNTIF('Folha de Pontuações'!$C$4:C455,'Folha de Pontuações'!C455)","v":"0"}]
[null,453,{"$f":"'Folha de Pontuações'!C456&COUNTIF('Folha de Pontuações'!$C$4:C456,'Folha de Pontuações'!C456)","v":"0"}]
[null,454,{"$f":"'Folha de Pontuações'!C457&COUNTIF('Folha de Pontuações'!$C$4:C457,'Folha de Pontuações'!C457)","v":"0"}]
[null,455,{"$f":"'Folha de Pontuações'!C458&COUNTIF('Folha de Pontuações'!$C$4:C458,'Folha de Pontuações'!C458)","v":"0"}]
[null,456,{"$f":"'Folha de Pontuações'!C459&COUNTIF('Folha de Pontuações'!$C$4:C459,'Folha de Pontuações'!C459)","v":"0"}]
[null,457,{"$f":"'Folha de Pontuações'!C460&COUNTIF('Folha de Pontuações'!$C$4:C460,'Folha de Pontuações'!C460)","v":"0"}]
[null,458,{"$f":"'Folha de Pontuações'!C461&COUNTIF('Folha de Pontuações'!$C$4:C461,'Folha de Pontuações'!C461)","v":"0"}]
[null,459,{"$f":"'Folha de Pontuações'!C462&COUNTIF('Folha de Pontuações'!$C$4:C462,'Folha de Pontuações'!C462)","v":"0"}]
[null,460,{"$f":"'Folha de Pontuações'!C463&COUNTIF('Folha de Pontuações'!$C$4:C463,'Folha de Pontuações'!C463)","v":"0"}]
[null,461,{"$f":"'Folha de Pontuações'!C464&COUNTIF('Folha de Pontuações'!$C$4:C464,'Folha de Pontuações'!C464)","v":"0"}]
[null,462,{"$f":"'Folha de Pontuações'!C465&COUNTIF('Folha de Pontuações'!$C$4:C465,'Folha de Pontuações'!C465)","v":"0"}]
[null,463,{"$f":"'Folha de Pontuações'!C466&COUNTIF('Folha de Pontuações'!$C$4:C466,'Folha de Pontuações'!C466)","v":"0"}]
[null,464,{"$f":"'Folha de Pontuações'!C467&COUNTIF('Folha de Pontuações'!$C$4:C467,'Folha de Pontuações'!C467)","v":"0"}]
[null,465,{"$f":"'Folha de Pontuações'!C468&COUNTIF('Folha de Pontuações'!$C$4:C468,'Folha de Pontuações'!C468)","v":"0"}]
[null,466,{"$f":"'Folha de Pontuações'!C469&COUNTIF('Folha de Pontuações'!$C$4:C469,'Folha de Pontuações'!C469)","v":"0"}]
[null,467,{"$f":"'Folha de Pontuações'!C470&COUNTIF('Folha de Pontuações'!$C$4:C470,'Folha de Pontuações'!C470)","v":"0"}]
[null,468,{"$f":"'Folha de Pontuações'!C471&COUNTIF('Folha de Pontuações'!$C$4:C471,'Folha de Pontuações'!C471)","v":"0"}]
[null,469,{"$f":"'Folha de Pontuações'!C472&COUNTIF('Folha de Pontuações'!$C$4:C472,'Folha de Pontuações'!C472)","v":"0"}]
[null,470,{"$f":"'Folha de Pontuações'!C473&COUNTIF('Folha de Pontuações'!$C$4:C473,'Folha de Pontuações'!C473)","v":"0"}]
[null,471,{"$f":"'Folha de Pontuações'!C474&COUNTIF('Folha de Pontuações'!$C$4:C474,'Folha de Pontuações'!C474)","v":"0"}]
[null,472,{"$f":"'Folha de Pontuações'!C475&COUNTIF('Folha de Pontuações'!$C$4:C475,'Folha de Pontuações'!C475)","v":"0"}]
[null,473,{"$f":"'Folha de Pontuações'!C476&COUNTIF('Folha de Pontuações'!$C$4:C476,'Folha de Pontuações'!C476)","v":"0"}]
[null,474,{"$f":"'Folha de Pontuações'!C477&COUNTIF('Folha de Pontuações'!$C$4:C477,'Folha de Pontuações'!C477)","v":"0"}]
[null,475,{"$f":"'Folha de Pontuações'!C478&COUNTIF('Folha de Pontuações'!$C$4:C478,'Folha de Pontuações'!C478)","v":"0"}]
[null,476,{"$f":"'Folha de Pontuações'!C479&COUNTIF('Folha de Pontuações'!$C$4:C479,'Folha de Pontuações'!C479)","v":"0"}]
[null,477,{"$f":"'Folha de Pontuações'!C480&COUNTIF('Folha de Pontuações'!$C$4:C480,'Folha de Pontuações'!C480)","v":"0"}]
[null,478,{"$f":"'Folha de Pontuações'!C481&COUNTIF('Folha de Pontuações'!$C$4:C481,'Folha de Pontuações'!C481)","v":"0"}]
[null,479,{"$f":"'Folha de Pontuações'!C482&COUNTIF('Folha de Pontuações'!$C$4:C482,'Folha de Pontuações'!C482)","v":"0"}]
[null,480,{"$f":"'Folha de Pontuações'!C483&COUNTIF('Folha de Pontuações'!$C$4:C483,'Folha de Pontuações'!C483)","v":"0"}]
[null,481,{"$f":"'Folha de Pontuações'!C484&COUNTIF('Folha de Pontuações'!$C$4:C484,'Folha de Pontuações'!C484)","v":"0"}]
[null,482,{"$f":"'Folha de Pontuações'!C485&COUNTIF('Folha de Pontuações'!$C$4:C485,'Folha de Pontuações'!C485)","v":"0"}]
[null,483,{"$f":"'Folha de Pontuações'!C486&COUNTIF('Folha de Pontuações'!$C$4:C486,'Folha de Pontuações'!C486)","v":"0"}]
[null,484,{"$f":"'Folha de Pontuações'!C487&COUNTIF('Folha de Pontuações'!$C$4:C487,'Folha de Pontuações'!C487)","v":"0"}]
[null,485,{"$f":"'Folha de Pontuações'!C488&COUNTIF('Folha de Pontuações'!$C$4:C488,'Folha de Pontuações'!C488)","v":"0"}]
[null,486,{"$f":"'Folha de Pontuações'!C489&COUNTIF('Folha de Pontuações'!$C$4:C489,'Folha de Pontuações'!C489)","v":"0"}]
[null,487,{"$f":"'Folha de Pontuações'!C490&COUNTIF('Folha de Pontuações'!$C$4:C490,'Folha de Pontuações'!C490)","v":"0"}]
[null,488,{"$f":"'Folha de Pontuações'!C491&COUNTIF('Folha de Pontuações'!$C$4:C491,'Folha de Pontuações'!C491)","v":"0"}]
[null,489,{"$f":"'Folha de Pontuações'!C492&COUNTIF('Folha de Pontuações'!$C$4:C492,'Folha de Pontuações'!C492)","v":"0"}]
[null,490,{"$f":"'Folha de Pontuações'!C493&COUNTIF('Folha de Pontuações'!$C$4:C493,'Folha de Pontuações'!C493)","v":"0"}]
[null,491,{"$f":"'Folha de Pontuações'!C494&COUNTIF('Folha de Pontuações'!$C$4:C494,'Folha de Pontuações'!C494)","v":"0"}]
[null,492,{"$f":"'Folha de Pontuações'!C495&COUNTIF('Folha de Pontuações'!$C$4:C495,'Folha de Pontuações'!C495)","v":"0"}]
[null,493,{"$f":"'Folha de Pontuações'!C496&COUNTIF('Folha de Pontuações'!$C$4:C496,'Folha de Pontuações'!C496)","v":"0"}]
[null,494,{"$f":"'Folha de Pontuações'!C497&COUNTIF('Folha de Pontuações'!$C$4:C497,'Folha de Pontuações'!C497)","v":"0"}]
[null,495,{"$f":"'Folha de Pontuações'!C498&COUNTIF('Folha de Pontuações'!$C$4:C498,'Folha de Pontuações'!C498)","v":"0"}]
[null,496,{"$f":"'Folha de Pontuações'!C499&COUNTIF('Folha de Pontuações'!$C$4:C499,'Folha de Pontuações'!C499)","v":"0"}]
[null,497,{"$f":"'Folha de Pontuações'!C500&COUNTIF('Folha de Pontuações'!$C$4:C500,'Folha de Pontuações'!C500)","v":"0"}]
[null,498,{"$f":"'Folha de Pontuações'!C501&COUNTIF('Folha de Pontuações'!$C$4:C501,'Folha de Pontuações'!C501)","v":"0"}]
[null,499,{"$f":"'Folha de Pontuações'!C502&COUNTIF('Folha de Pontuações'!$C$4:C502,'Folha de Pontuações'!C502)","v":"0"}]
[null,500,{"$f":"'Folha de Pontuações'!C503&COUNTIF('Folha de Pontuações'!$C$4:C503,'Folha de Pontuações'!C503)","v":"0"}]
[null,501,{"$f":"'Folha de Pontuações'!C504&COUNTIF('Folha de Pontuações'!$C$4:C504,'Folha de Pontuações'!C504)","v":"0"}]
[null,502,{"$f":"'Folha de Pontuações'!C505&COUNTIF('Folha de Pontuações'!$C$4:C505,'Folha de Pontuações'!C505)","v":"0"}]
[null,503,{"$f":"'Folha de Pontuações'!C506&COUNTIF('Folha de Pontuações'!$C$4:C506,'Folha de Pontuações'!C506)","v":"0"}]
[null,504,{"$f":"'Folha de Pontuações'!C507&COUNTIF('Folha de Pontuações'!$C$4:C507,'Folha de Pontuações'!C507)","v":"0"}]
[null,505,{"$f":"'Folha de Pontuações'!C508&COUNTIF('Folha de Pontuações'!$C$4:C508,'Folha de Pontuações'!C508)","v":"0"}]
[null,506,{"$f":"'Folha de Pontuações'!C509&COUNTIF('Folha de Pontuações'!$C$4:C509,'Folha de Pontuações'!C509)","v":"0"}]
[null,507,{"$f":"'Folha de Pontuações'!C510&COUNTIF('Folha de Pontuações'!$C$4:C510,'Folha de Pontuações'!C510)","v":"0"}]
[null,508,{"$f":"'Folha de Pontuações'!C511&COUNTIF('Folha de Pontuações'!$C$4:C511,'Folha de Pontuações'!C511)","v":"0"}]
[null,509,{"$f":"'Folha de Pontuações'!C512&COUNTIF('Folha de Pontuações'!$C$4:C512,'Folha de Pontuações'!C512)","v":"0"}]
[null,510,{"$f":"'Folha de Pontuações'!C513&COUNTIF('Folha de Pontuações'!$C$4:C513,'Folha de Pontuações'!C513)","v":"0"}]
[null,511,{"$f":"'Folha de Pontuações'!C514&COUNTIF('Folha de Pontuações'!$C$4:C514,'Folha de Pontuações'!C514)","v":"0"}]
[null,512,{"$f":"'Folha de Pontuações'!C515&COUNTIF('Folha de Pontuações'!$C$4:C515,'Folha de Pontuações'!C515)","v":"0"}]
[null,513,{"$f":"'Folha de Pontuações'!C516&COUNTIF('Folha de Pontuações'!$C$4:C516,'Folha de Pontuações'!C516)","v":"0"}]
[null,514,{"$f":"'Folha de Pontuações'!C517&COUNTIF('Folha de Pontuações'!$C$4:C517,'Folha de Pontuações'!C517)","v":"0"}]
[null,515,{"$f":"'Folha de Pontuações'!C518&COUNTIF('Folha de Pontuações'!$C$4:C518,'Folha de Pontuações'!C518)","v":"0"}]
[null,516,{"$f":"'Folha de Pontuações'!C519&COUNTIF('Folha de Pontuações'!$C$4:C519,'Folha de Pontuações'!C519)","v":"0"}]
[null,517,{"$f":"'Folha de Pontuações'!C520&COUNTIF('Folha de Pontuações'!$C$4:C520,'Folha de Pontuações'!C520)","v":"0"}]
[null,518,{"$f":"'Folha de Pontuações'!C521&COUNTIF('Folha de Pontuações'!$C$4:C521,'Folha de Pontuações'!C521)","v":"0"}]
[null,519,{"$f":"'Folha de Pontuações'!C522&COUNTIF('Folha de Pontuações'!$C$4:C522,'Folha de Pontuações'!C522)","v":"0"}]
[null,520,{"$f":"'Folha de Pontuações'!C523&COUNTIF('Folha de Pontuações'!$C$4:C523,'Folha de Pontuações'!C523)","v":"0"}]
[null,521,{"$f":"'Folha de Pontuações'!C524&COUNTIF('Folha de Pontuações'!$C$4:C524,'Folha de Pontuações'!C524)","v":"0"}]
[null,522,{"$f":"'Folha de Pontuações'!C525&COUNTIF('Folha de Pontuações'!$C$4:C525,'Folha de Pontuações'!C525)","v":"0"}]
[null,523,{"$f":"'Folha de Pontuações'!C526&COUNTIF('Folha de Pontuações'!$C$4:C526,'Folha de Pontuações'!C526)","v":"0"}]
[null,524,{"$f":"'Folha de Pontuações'!C527&COUNTIF('Folha de Pontuações'!$C$4:C527,'Folha de Pontuações'!C527)","v":"0"}]
[null,525,{"$f":"'Folha de Pontuações'!C528&COUNTIF('Folha de Pontuações'!$C$4:C528,'Folha de Pontuações'!C528)","v":"0"}]
[null,526,{"$f":"'Folha de Pontuações'!C529&COUNTIF('Folha de Pontuações'!$C$4:C529,'Folha de Pontuações'!C529)","v":"0"}]
[null,527,{"$f":"'Folha de Pontuações'!C530&COUNTIF('Folha de Pontuações'!$C$4:C530,'Folha de Pontuações'!C530)","v":"0"}]
[null,528,{"$f":"'Folha de Pontuações'!C531&COUNTIF('Folha de Pontuações'!$C$4:C531,'Folha de Pontuações'!C531)","v":"0"}]
[null,529,{"$f":"'Folha de Pontuações'!C532&COUNTIF('Folha de Pontuações'!$C$4:C532,'Folha de Pontuações'!C532)","v":"0"}]
[null,530,{"$f":"'Folha de Pontuações'!C533&COUNTIF('Folha de Pontuações'!$C$4:C533,'Folha de Pontuações'!C533)","v":"0"}]
[null,531,{"$f":"'Folha de Pontuações'!C534&COUNTIF('Folha de Pontuações'!$C$4:C534,'Folha de Pontuações'!C534)","v":"0"}]
[null,532,{"$f":"'Folha de Pontuações'!C535&COUNTIF('Folha de Pontuações'!$C$4:C535,'Folha de Pontuações'!C535)","v":"0"}]
[null,533,{"$f":"'Folha de Pontuações'!C536&COUNTIF('Folha de Pontuações'!$C$4:C536,'Folha de Pontuações'!C536)","v":"0"}]
[null,534,{"$f":"'Folha de Pontuações'!C537&COUNTIF('Folha de Pontuações'!$C$4:C537,'Folha de Pontuações'!C537)","v":"0"}]
[null,535,{"$f":"'Folha de Pontuações'!C538&COUNTIF('Folha de Pontuações'!$C$4:C538,'Folha de Pontuações'!C538)","v":"0"}]
[null,536,{"$f":"'Folha de Pontuações'!C539&COUNTIF('Folha de Pontuações'!$C$4:C539,'Folha de Pontuações'!C539)","v":"0"}]
[null,537,{"$f":"'Folha de Pontuações'!C540&COUNTIF('Folha de Pontuações'!$C$4:C540,'Folha de Pontuações'!C540)","v":"0"}]
[null,538,{"$f":"'Folha de Pontuações'!C541&COUNTIF('Folha de Pontuações'!$C$4:C541,'Folha de Pontuações'!C541)","v":"0"}]
[null,539,{"$f":"'Folha de Pontuações'!C542&COUNTIF('Folha de Pontuações'!$C$4:C542,'Folha de Pontuações'!C542)","v":"0"}]
[null,540,{"$f":"'Folha de Pontuações'!C543&COUNTIF('Folha de Pontuações'!$C$4:C543,'Folha de Pontuações'!C543)","v":"0"}]
[null,541,{"$f":"'Folha de Pontuações'!C544&COUNTIF('Folha de Pontuações'!$C$4:C544,'Folha de Pontuações'!C544)","v":"0"}]
[null,542,{"$f":"'Folha de Pontuações'!C545&COUNTIF('Folha de Pontuações'!$C$4:C545,'Folha de Pontuações'!C545)","v":"0"}]
[null,543,{"$f":"'Folha de Pontuações'!C546&COUNTIF('Folha de Pontuações'!$C$4:C546,'Folha de Pontuações'!C546)","v":"0"}]
[null,544,{"$f":"'Folha de Pontuações'!C547&COUNTIF('Folha de Pontuações'!$C$4:C547,'Folha de Pontuações'!C547)","v":"0"}]
[null,545,{"$f":"'Folha de Pontuações'!C548&COUNTIF('Folha de Pontuações'!$C$4:C548,'Folha de Pontuações'!C548)","v":"0"}]
[null,546,{"$f":"'Folha de Pontuações'!C549&COUNTIF('Folha de Pontuações'!$C$4:C549,'Folha de Pontuações'!C549)","v":"0"}]
[null,547,{"$f":"'Folha de Pontuações'!C550&COUNTIF('Folha de Pontuações'!$C$4:C550,'Folha de Pontuações'!C550)","v":"0"}]
[null,548,{"$f":"'Folha de Pontuações'!C551&COUNTIF('Folha de Pontuações'!$C$4:C551,'Folha de Pontuações'!C551)","v":"0"}]
[null,549,{"$f":"'Folha de Pontuações'!C552&COUNTIF('Folha de Pontuações'!$C$4:C552,'Folha de Pontuações'!C552)","v":"0"}]
[null,550,{"$f":"'Folha de Pontuações'!C553&COUNTIF('Folha de Pontuações'!$C$4:C553,'Folha de Pontuações'!C553)","v":"0"}]
[null,551,{"$f":"'Folha de Pontuações'!C554&COUNTIF('Folha de Pontuações'!$C$4:C554,'Folha de Pontuações'!C554)","v":"0"}]
[null,552,{"$f":"'Folha de Pontuações'!C555&COUNTIF('Folha de Pontuações'!$C$4:C555,'Folha de Pontuações'!C555)","v":"0"}]
[null,553,{"$f":"'Folha de Pontuações'!C556&COUNTIF('Folha de Pontuações'!$C$4:C556,'Folha de Pontuações'!C556)","v":"0"}]
[null,554,{"$f":"'Folha de Pontuações'!C557&COUNTIF('Folha de Pontuações'!$C$4:C557,'Folha de Pontuações'!C557)","v":"0"}]
[null,555,{"$f":"'Folha de Pontuações'!C558&COUNTIF('Folha de Pontuações'!$C$4:C558,'Folha de Pontuações'!C558)","v":"0"}]
[null,556,{"$f":"'Folha de Pontuações'!C559&COUNTIF('Folha de Pontuações'!$C$4:C559,'Folha de Pontuações'!C559)","v":"0"}]
[null,557,{"$f":"'Folha de Pontuações'!C560&COUNTIF('Folha de Pontuações'!$C$4:C560,'Folha de Pontuações'!C560)","v":"0"}]
[null,558,{"$f":"'Folha de Pontuações'!C561&COUNTIF('Folha de Pontuações'!$C$4:C561,'Folha de Pontuações'!C561)","v":"0"}]
[null,559,{"$f":"'Folha de Pontuações'!C562&COUNTIF('Folha de Pontuações'!$C$4:C562,'Folha de Pontuações'!C562)","v":"0"}]
[null,560,{"$f":"'Folha de Pontuações'!C563&COUNTIF('Folha de Pontuações'!$C$4:C563,'Folha de Pontuações'!C563)","v":"0"}]
[null,561,{"$f":"'Folha de Pontuações'!C564&COUNTIF('Folha de Pontuações'!$C$4:C564,'Folha de Pontuações'!C564)","v":"0"}]
[null,562,{"$f":"'Folha de Pontuações'!C565&COUNTIF('Folha de Pontuações'!$C$4:C565,'Folha de Pontuações'!C565)","v":"0"}]
[null,563,{"$f":"'Folha de Pontuações'!C566&COUNTIF('Folha de Pontuações'!$C$4:C566,'Folha de Pontuações'!C566)","v":"0"}]
[null,564,{"$f":"'Folha de Pontuações'!C567&COUNTIF('Folha de Pontuações'!$C$4:C567,'Folha de Pontuações'!C567)","v":"0"}]
[null,565,{"$f":"'Folha de Pontuações'!C568&COUNTIF('Folha de Pontuações'!$C$4:C568,'Folha de Pontuações'!C568)","v":"0"}]
[null,566,{"$f":"'Folha de Pontuações'!C569&COUNTIF('Folha de Pontuações'!$C$4:C569,'Folha de Pontuações'!C569)","v":"0"}]
[null,567,{"$f":"'Folha de Pontuações'!C570&COUNTIF('Folha de Pontuações'!$C$4:C570,'Folha de Pontuações'!C570)","v":"0"}]
[null,568,{"$f":"'Folha de Pontuações'!C571&COUNTIF('Folha de Pontuações'!$C$4:C571,'Folha de Pontuações'!C571)","v":"0"}]
[null,569,{"$f":"'Folha de Pontuações'!C572&COUNTIF('Folha de Pontuações'!$C$4:C572,'Folha de Pontuações'!C572)","v":"0"}]
[null,570,{"$f":"'Folha de Pontuações'!C573&COUNTIF('Folha de Pontuações'!$C$4:C573,'Folha de Pontuações'!C573)","v":"0"}]
[null,571,{"$f":"'Folha de Pontuações'!C574&COUNTIF('Folha de Pontuações'!$C$4:C574,'Folha de Pontuações'!C574)","v":"0"}]
[null,572,{"$f":"'Folha de Pontuações'!C575&COUNTIF('Folha de Pontuações'!$C$4:C575,'Folha de Pontuações'!C575)","v":"0"}]
[null,573,{"$f":"'Folha de Pontuações'!C576&COUNTIF('Folha de Pontuações'!$C$4:C576,'Folha de Pontuações'!C576)","v":"0"}]
[null,574,{"$f":"'Folha de Pontuações'!C577&COUNTIF('Folha de Pontuações'!$C$4:C577,'Folha de Pontuações'!C577)","v":"0"}]
[null,575,{"$f":"'Folha de Pontuações'!C578&COUNTIF('Folha de Pontuações'!$C$4:C578,'Folha de Pontuações'!C578)","v":"0"}]
[null,576,{"$f":"'Folha de Pontuações'!C579&COUNTIF('Folha de Pontuações'!$C$4:C579,'Folha de Pontuações'!C579)","v":"0"}]
[null,577,{"$f":"'Folha de Pontuações'!C580&COUNTIF('Folha de Pontuações'!$C$4:C580,'Folha de Pontuações'!C580)","v":"0"}]
[null,578,{"$f":"'Folha de Pontuações'!C581&COUNTIF('Folha de Pontuações'!$C$4:C581,'Folha de Pontuações'!C581)","v":"0"}]
[null,579,{"$f":"'Folha de Pontuações'!C582&COUNTIF('Folha de Pontuações'!$C$4:C582,'Folha de Pontuações'!C582)","v":"0"}]
[null,580,{"$f":"'Folha de Pontuações'!C583&COUNTIF('Folha de Pontuações'!$C$4:C583,'Folha de Pontuações'!C583)","v":"0"}]
[null,581,{"$f":"'Folha de Pontuações'!C584&COUNTIF('Folha de Pontuações'!$C$4:C584,'Folha de Pontuações'!C584)","v":"0"}]
[null,582,{"$f":"'Folha de Pontuações'!C585&COUNTIF('Folha de Pontuações'!$C$4:C585,'Folha de Pontuações'!C585)","v":"0"}]
[null,583,{"$f":"'Folha de Pontuações'!C586&COUNTIF('Folha de Pontuações'!$C$4:C586,'Folha de Pontuações'!C586)","v":"0"}]
[null,584,{"$f":"'Folha de Pontuações'!C587&COUNTIF('Folha de Pontuações'!$C$4:C587,'Folha de Pontuações'!C587)","v":"0"}]
[null,585,{"$f":"'Folha de Pontuações'!C588&COUNTIF('Folha de Pontuações'!$C$4:C588,'Folha de Pontuações'!C588)","v":"0"}]
[null,586,{"$f":"'Folha de Pontuações'!C589&COUNTIF('Folha de Pontuações'!$C$4:C589,'Folha de Pontuações'!C589)","v":"0"}]
[null,587,{"$f":"'Folha de Pontuações'!C590&COUNTIF('Folha de Pontuações'!$C$4:C590,'Folha de Pontuações'!C590)","v":"0"}]
[null,588,{"$f":"'Folha de Pontuações'!C591&COUNTIF('Folha de Pontuações'!$C$4:C591,'Folha de Pontuações'!C591)","v":"0"}]
[null,589,{"$f":"'Folha de Pontuações'!C592&COUNTIF('Folha de Pontuações'!$C$4:C592,'Folha de Pontuações'!C592)","v":"0"}]
[null,590,{"$f":"'Folha de Pontuações'!C593&COUNTIF('Folha de Pontuações'!$C$4:C593,'Folha de Pontuações'!C593)","v":"0"}]
[null,591,{"$f":"'Folha de Pontuações'!C594&COUNTIF('Folha de Pontuações'!$C$4:C594,'Folha de Pontuações'!C594)","v":"0"}]
[null,592,{"$f":"'Folha de Pontuações'!C595&COUNTIF('Folha de Pontuações'!$C$4:C595,'Folha de Pontuações'!C595)","v":"0"}]
[null,593,{"$f":"'Folha de Pontuações'!C596&COUNTIF('Folha de Pontuações'!$C$4:C596,'Folha de Pontuações'!C596)","v":"0"}]
[null,594,{"$f":"'Folha de Pontuações'!C597&COUNTIF('Folha de Pontuações'!$C$4:C597,'Folha de Pontuações'!C597)","v":"0"}]
[null,595,{"$f":"'Folha de Pontuações'!C598&COUNTIF('Folha de Pontuações'!$C$4:C598,'Folha de Pontuações'!C598)","v":"0"}]
[null,596,{"$f":"'Folha de Pontuações'!C599&COUNTIF('Folha de Pontuações'!$C$4:C599,'Folha de Pontuações'!C599)","v":"0"}]
[null,597,{"$f":"'Folha de Pontuações'!C600&COUNTIF('Folha de Pontuações'!$C$4:C600,'Folha de Pontuações'!C600)","v":"0"}]
[null,598,{"$f":"'Folha de Pontuações'!C601&COUNTIF('Folha de Pontuações'!$C$4:C601,'Folha de Pontuações'!C601)","v":"0"}]
[null,599,{"$f":"'Folha de Pontuações'!C602&COUNTIF('Folha de Pontuações'!$C$4:C602,'Folha de Pontuações'!C602)","v":"0"}]
[null,600,{"$f":"'Folha de Pontuações'!C603&COUNTIF('Folha de Pontuações'!$C$4:C603,'Folha de Pontuações'!C603)","v":"0"}]
[null,601,{"$f":"'Folha de Pontuações'!C604&COUNTIF('Folha de Pontuações'!$C$4:C604,'Folha de Pontuações'!C604)","v":"0"}]
[null,602,{"$f":"'Folha de Pontuações'!C605&COUNTIF('Folha de Pontuações'!$C$4:C605,'Folha de Pontuações'!C605)","v":"0"}]
[null,603,{"$f":"'Folha de Pontuações'!C606&COUNTIF('Folha de Pontuações'!$C$4:C606,'Folha de Pontuações'!C606)","v":"0"}]
[null,604,{"$f":"'Folha de Pontuações'!C607&COUNTIF('Folha de Pontuações'!$C$4:C607,'Folha de Pontuações'!C607)","v":"0"}]
[null,605,{"$f":"'Folha de Pontuações'!C608&COUNTIF('Folha de Pontuações'!$C$4:C608,'Folha de Pontuações'!C608)","v":"0"}]
[null,606,{"$f":"'Folha de Pontuações'!C609&COUNTIF('Folha de Pontuações'!$C$4:C609,'Folha de Pontuações'!C609)","v":"0"}]
[null,607,{"$f":"'Folha de Pontuações'!C610&COUNTIF('Folha de Pontuações'!$C$4:C610,'Folha de Pontuações'!C610)","v":"0"}]
[null,608,{"$f":"'Folha de Pontuações'!C611&COUNTIF('Folha de Pontuações'!$C$4:C611,'Folha de Pontuações'!C611)","v":"0"}]
[null,609,{"$f":"'Folha de Pontuações'!C612&COUNTIF('Folha de Pontuações'!$C$4:C612,'Folha de Pontuações'!C612)","v":"0"}]
[null,610,{"$f":"'Folha de Pontuações'!C613&COUNTIF('Folha de Pontuações'!$C$4:C613,'Folha de Pontuações'!C613)","v":"0"}]
[null,611,{"$f":"'Folha de Pontuações'!C614&COUNTIF('Folha de Pontuações'!$C$4:C614,'Folha de Pontuações'!C614)","v":"0"}]
[null,612,{"$f":"'Folha de Pontuações'!C615&COUNTIF('Folha de Pontuações'!$C$4:C615,'Folha de Pontuações'!C615)","v":"0"}]
[null,613,{"$f":"'Folha de Pontuações'!C616&COUNTIF('Folha de Pontuações'!$C$4:C616,'Folha de Pontuações'!C616)","v":"0"}]
[null,614,{"$f":"'Folha de Pontuações'!C617&COUNTIF('Folha de Pontuações'!$C$4:C617,'Folha de Pontuações'!C617)","v":"0"}]
[null,615,{"$f":"'Folha de Pontuações'!C618&COUNTIF('Folha de Pontuações'!$C$4:C618,'Folha de Pontuações'!C618)","v":"0"}]
[null,616,{"$f":"'Folha de Pontuações'!C619&COUNTIF('Folha de Pontuações'!$C$4:C619,'Folha de Pontuações'!C619)","v":"0"}]
[null,617,{"$f":"'Folha de Pontuações'!C620&COUNTIF('Folha de Pontuações'!$C$4:C620,'Folha de Pontuações'!C620)","v":"0"}]
[null,618,{"$f":"'Folha de Pontuações'!C621&COUNTIF('Folha de Pontuações'!$C$4:C621,'Folha de Pontuações'!C621)","v":"0"}]
[null,619,{"$f":"'Folha de Pontuações'!C622&COUNTIF('Folha de Pontuações'!$C$4:C622,'Folha de Pontuações'!C622)","v":"0"}]
[null,620,{"$f":"'Folha de Pontuações'!C623&COUNTIF('Folha de Pontuações'!$C$4:C623,'Folha de Pontuações'!C623)","v":"0"}]
[null,621,{"$f":"'Folha de Pontuações'!C624&COUNTIF('Folha de Pontuações'!$C$4:C624,'Folha de Pontuações'!C624)","v":"0"}]
[null,622,{"$f":"'Folha de Pontuações'!C625&COUNTIF('Folha de Pontuações'!$C$4:C625,'Folha de Pontuações'!C625)","v":"0"}]
[null,623,{"$f":"'Folha de Pontuações'!C626&COUNTIF('Folha de Pontuações'!$C$4:C626,'Folha de Pontuações'!C626)","v":"0"}]
[null,624,{"$f":"'Folha de Pontuações'!C627&COUNTIF('Folha de Pontuações'!$C$4:C627,'Folha de Pontuações'!C627)","v":"0"}]
[null,625,{"$f":"'Folha de Pontuações'!C628&COUNTIF('Folha de Pontuações'!$C$4:C628,'Folha de Pontuações'!C628)","v":"0"}]